Workbook

Sheet readme

Sheet calculator
C2: จำนวนแถวที่ต้องการคำนวณ
C4: MO | D4: SC | E4: UA | F4: PD | G4: AD | H4: Profile | I4: Utility

Sheet tariff
A1: คะแนนอรรถประโยชน์ของสถานะสุขภาพทั้งหมดที่เป็นไปได้ของ EQ-5D-5L จำนวน 3,125 สถานะที่สำรวจจากกลุ่มตัวอย่างประชากรไทย คำนวณคะแนนอรรถประโยชน์ด้วย Hybrid model
A3: MO | B3: SC | C3: UA | D3: PD | E3: AD | F3: Profile | G3: Utility | I3: Health dimension | J3: Coefficient | K3: Std.Err. | L3: 95% confidence interval
A4: 1 | B4: 1 | C4: 1 | D4: 1 | E4: 1 | F4: 11111 | G4: 1 | I4: / level | L4: lower | M4: upper
A5: 1 | B5: 1 | C5: 1 | D5: 1 | E5: 2 | F5: 11112 | G5: 0.9419143 | I5: Mobility (MO)
A6: 1 | B6: 1 | C6: 1 | D6: 1 | E6: 3 | F6: 11113 | G6: 0.9042461 | I6: 2 | J6: 0.066127 | K6: 0.0049381 | L6: 0.0564485 | M6: 0.0758055
A7: 1 | B7: 1 | C7: 1 | D7: 1 | E7: 4 | F7: 11114 | G7: 0.7672964 | I7: 3 | J7: 0.0865629 | K7: 0.0072177 | L7: 0.0724165 | M7: 0.1007093
A8: 1 | B8: 1 | C8: 1 | D8: 1 | E8: 5 | F8: 11115 | G8: 0.7046507 | I8: 4 | J8: 0.2109943 | K8: 0.0070863 | L8: 0.1971054 | M8: 0.2248833
A9: 1 | B9: 1 | C9: 1 | D9: 2 | E9: 1 | F9: 11121 | G9: 0.9436002 | I9: 5 | J9: 0.3712311 | K9: 0.0071952 | L9: 0.3571286 | M9: 0.3853335
A10: 1 | B10: 1 | C10: 1 | D10: 2 | E10: 2 | F10: 11122 | G10: 0.8855145 | I10: Self-care (SC)
A11: 1 | B11: 1 | C11: 1 | D11: 2 | E11: 3 | F11: 11123 | G11: 0.8478463 | I11: 2 | J11: 0.0581293 | K11: 0.0046566 | L11: 0.0490026 | M11: 0.067256
A12: 1 | B12: 1 | C12: 1 | D12: 2 | E12: 4 | F12: 11124 | G12: 0.7108966 | I12: 3 | J12: 0.0706312 | K12: 0.0067241 | L12: 0.0574522 | M12: 0.0838102
A13: 1 | B13: 1 | C13: 1 | D13: 2 | E13: 5 | F13: 11125 | G13: 0.6482509 | I13: 4 | J13: 0.1924905 | K13: 0.0071362 | L13: 0.1785039 | M13: 0.2064771
A14: 1 | B14: 1 | C14: 1 | D14: 3 | E14: 1 | F14: 11131 | G14: 0.9335078 | I14: 5 | J14: 0.2498763 | K14: 0.00661 | L14: 0.2369209 | M14: 0.2628317
A15: 1 | B15: 1 | C15: 1 | D15: 3 | E15: 2 | F15: 11132 | G15: 0.8754221 | I15: Usual activities (UA)
A16: 1 | B16: 1 | C16: 1 | D16: 3 | E16: 3 | F16: 11133 | G16: 0.8377539 | I16: 2 | J16: 0.0582544 | K16: 0.0047397 | L16: 0.0489648 | M16: 0.0675441
A17: 1 | B17: 1 | C17: 1 | D17: 3 | E17: 4 | F17: 11134 | G17: 0.7008042 | I17: 3 | J17: 0.0711974 | K17: 0.0065282 | L17: 0.0584024 | M17: 0.0839923
A18: 1 | B18: 1 | C18: 1 | D18: 3 | E18: 5 | F18: 11135 | G18: 0.6381585 | I18: 4 | J18: 0.1534855 | K18: 0.0067402 | L18: 0.140275 | M18: 0.166696
A19: 1 | B19: 1 | C19: 1 | D19: 4 | E19: 1 | F19: 11141 | G19: 0.7931136 | I19: 5 | J19: 0.248331 | K19: 0.0067093 | L19: 0.235181 | M19: 0.261481
A20: 1 | B20: 1 | C20: 1 | D20: 4 | E20: 2 | F20: 11142 | G20: 0.7350279 | I20: Pain/discomfort (PD)
A21: 1 | B21: 1 | C21: 1 | D21: 4 | E21: 3 | F21: 11143 | G21: 0.6973597 | I21: 2 | J21: 0.0563998 | K21: 0.0042876 | L21: 0.0479963 | M21: 0.0648034
A22: 1 | B22: 1 | C22: 1 | D22: 4 | E22: 4 | F22: 11144 | G22: 0.56041 | I22: 3 | J22: 0.0664922 | K22: 0.0071412 | L22: 0.0524957 | M22: 0.0804887
A23: 1 | B23: 1 | C23: 1 | D23: 4 | E23: 5 | F23: 11145 | G23: 0.4977643 | I23: 4 | J23: 0.2068864 | K23: 0.007112 | L23: 0.1929471 | M23: 0.2208256
A24: 1 | B24: 1 | C24: 1 | D24: 5 | E24: 1 | F24: 11151 | G24: 0.7435669 | I24: 5 | J24: 0.2564331 | K24: 0.0072508 | L24: 0.2422218 | M24: 0.2706445
A25: 1 | B25: 1 | C25: 1 | D25: 5 | E25: 2 | F25: 11152 | G25: 0.6854812 | I25: Anxiety/depression (AD)
A26: 1 | B26: 1 | C26: 1 | D26: 5 | E26: 3 | F26: 11153 | G26: 0.647813 | I26: 2 | J26: 0.0580857 | K26: 0.0043138 | L26: 0.0496309 | M26: 0.0665406
A27: 1 | B27: 1 | C27: 1 | D27: 5 | E27: 4 | F27: 11154 | G27: 0.5108633 | I27: 3 | J27: 0.0957539 | K27: 0.0068403 | L27: 0.0823471 | M27: 0.1091607
A28: 1 | B28: 1 | C28: 1 | D28: 5 | E28: 5 | F28: 11155 | G28: 0.4482176 | I28: 4 | J28: 0.2327036 | K28: 0.0066124 | L28: 0.2197436 | M28: 0.2456636
A29: 1 | B29: 1 | C29: 2 | D29: 1 | E29: 1 | F29: 11211 | G29: 0.9417456 | I29: 5 | J29: 0.2953493 | K29: 0.0066338 | L29: 0.2823473 | M29: 0.3083512
A30: 1 | B30: 1 | C30: 2 | D30: 1 | E30: 2 | F30: 11212 | G30: 0.8836599
A31: 1 | B31: 1 | C31: 2 | D31: 1 | E31: 3 | F31: 11213 | G31: 0.8459917
A32: 1 | B32: 1 | C32: 2 | D32: 1 | E32: 4 | F32: 11214 | G32: 0.709042
A33: 1 | B33: 1 | C33: 2 | D33: 1 | E33: 5 | F33: 11215 | G33: 0.6463963
A34: 1 | B34: 1 | C34: 2 | D34: 2 | E34: 1 | F34: 11221 | G34: 0.8853458
A35: 1 | B35: 1 | C35: 2 | D35: 2 | E35: 2 | F35: 11222 | G35: 0.8272601
A36: 1 | B36: 1 | C36: 2 | D36: 2 | E36: 3 | F36: 11223 | G36: 0.7895919
A37: 1 | B37: 1 | C37: 2 | D37: 2 | E37: 4 | F37: 11224 | G37: 0.6526422
A38: 1 | B38: 1 | C38: 2 | D38: 2 | E38: 5 | F38: 11225 | G38: 0.5899965
A39: 1 | B39: 1 | C39: 2 | D39: 3 | E39: 1 | F39: 11231 | G39: 0.8752534
A40: 1 | B40: 1 | C40: 2 | D40: 3 | E40: 2 | F40: 11232 | G40: 0.8171677
A41: 1 | B41: 1 | C41: 2 | D41: 3 | E41: 3 | F41: 11233 | G41: 0.7794995
A42: 1 | B42: 1 | C42: 2 | D42: 3 | E42: 4 | F42: 11234 | G42: 0.6425498
A43: 1 | B43: 1 | C43: 2 | D43: 3 | E43: 5 | F43: 11235 | G43: 0.5799041
A44: 1 | B44: 1 | C44: 2 | D44: 4 | E44: 1 | F44: 11241 | G44: 0.7348592
A45: 1 | B45: 1 | C45: 2 | D45: 4 | E45: 2 | F45: 11242 | G45: 0.6767735
A46: 1 | B46: 1 | C46: 2 | D46: 4 | E46: 3 | F46: 11243 | G46: 0.6391053
A47: 1 | B47: 1 | C47: 2 | D47: 4 | E47: 4 | F47: 11244 | G47: 0.5021556
A48: 1 | B48: 1 | C48: 2 | D48: 4 | E48: 5 | F48: 11245 | G48: 0.4395099
A49: 1 | B49: 1 | C49: 2 | D49: 5 | E49: 1 | F49: 11251 | G49: 0.6853125
A50: 1 | B50: 1 | C50: 2 | D50: 5 | E50: 2 | F50: 11252 | G50: 0.6272268
A51: 1 | B51: 1 | C51: 2 | D51: 5 | E51: 3 | F51: 11253 | G51: 0.5895586
A52: 1 | B52: 1 | C52: 2 | D52: 5 | E52: 4 | F52: 11254 | G52: 0.4526089
A53: 1 | B53: 1 | C53: 2 | D53: 5 | E53: 5 | F53: 11255 | G53: 0.3899632
A54: 1 | B54: 1 | C54: 3 | D54: 1 | E54: 1 | F54: 11311 | G54: 0.9288026
A55: 1 | B55: 1 | C55: 3 | D55: 1 | E55: 2 | F55: 11312 | G55: 0.8707169
A56: 1 | B56: 1 | C56: 3 | D56: 1 | E56: 3 | F56: 11313 | G56: 0.8330487
A57: 1 | B57: 1 | C57: 3 | D57: 1 | E57: 4 | F57: 11314 | G57: 0.696099
A58: 1 | B58: 1 | C58: 3 | D58: 1 | E58: 5 | F58: 11315 | G58: 0.6334533
A59: 1 | B59: 1 | C59: 3 | D59: 2 | E59: 1 | F59: 11321 | G59: 0.8724028
A60: 1 | B60: 1 | C60: 3 | D60: 2 | E60: 2 | F60: 11322 | G60: 0.8143171
A61: 1 | B61: 1 | C61: 3 | D61: 2 | E61: 3 | F61: 11323 | G61: 0.7766489
A62: 1 | B62: 1 | C62: 3 | D62: 2 | E62: 4 | F62: 11324 | G62: 0.6396992
A63: 1 | B63: 1 | C63: 3 | D63: 2 | E63: 5 | F63: 11325 | G63: 0.5770535
A64: 1 | B64: 1 | C64: 3 | D64: 3 | E64: 1 | F64: 11331 | G64: 0.8623104
A65: 1 | B65: 1 | C65: 3 | D65: 3 | E65: 2 | F65: 11332 | G65: 0.8042247
A66: 1 | B66: 1 | C66: 3 | D66: 3 | E66: 3 | F66: 11333 | G66: 0.7665565
A67: 1 | B67: 1 | C67: 3 | D67: 3 | E67: 4 | F67: 11334 | G67: 0.6296068
A68: 1 | B68: 1 | C68: 3 | D68: 3 | E68: 5 | F68: 11335 | G68: 0.5669611
A69: 1 | B69: 1 | C69: 3 | D69: 4 | E69: 1 | F69: 11341 | G69: 0.7219162
A70: 1 | B70: 1 | C70: 3 | D70: 4 | E70: 2 | F70: 11342 | G70: 0.6638305
A71: 1 | B71: 1 | C71: 3 | D71: 4 | E71: 3 | F71: 11343 | G71: 0.6261623
A72: 1 | B72: 1 | C72: 3 | D72: 4 | E72: 4 | F72: 11344 | G72: 0.4892126
A73: 1 | B73: 1 | C73: 3 | D73: 4 | E73: 5 | F73: 11345 | G73: 0.4265669
A74: 1 | B74: 1 | C74: 3 | D74: 5 | E74: 1 | F74: 11351 | G74: 0.6723695
A75: 1 | B75: 1 | C75: 3 | D75: 5 | E75: 2 | F75: 11352 | G75: 0.6142838
A76: 1 | B76: 1 | C76: 3 | D76: 5 | E76: 3 | F76: 11353 | G76: 0.5766156
A77: 1 | B77: 1 | C77: 3 | D77: 5 | E77: 4 | F77: 11354 | G77: 0.4396659
A78: 1 | B78: 1 | C78: 3 | D78: 5 | E78: 5 | F78: 11355 | G78: 0.3770202
A79: 1 | B79: 1 | C79: 4 | D79: 1 | E79: 1 | F79: 11411 | G79: 0.8465145
A80: 1 | B80: 1 | C80: 4 | D80: 1 | E80: 2 | F80: 11412 | G80: 0.7884288
A81: 1 | B81: 1 | C81: 4 | D81: 1 | E81: 3 | F81: 11413 | G81: 0.7507606
A82: 1 | B82: 1 | C82: 4 | D82: 1 | E82: 4 | F82: 11414 | G82: 0.6138109
A83: 1 | B83: 1 | C83: 4 | D83: 1 | E83: 5 | F83: 11415 | G83: 0.5511652
A84: 1 | B84: 1 | C84: 4 | D84: 2 | E84: 1 | F84: 11421 | G84: 0.7901147
A85: 1 | B85: 1 | C85: 4 | D85: 2 | E85: 2 | F85: 11422 | G85: 0.732029
A86: 1 | B86: 1 | C86: 4 | D86: 2 | E86: 3 | F86: 11423 | G86: 0.6943608
A87: 1 | B87: 1 | C87: 4 | D87: 2 | E87: 4 | F87: 11424 | G87: 0.5574111
A88: 1 | B88: 1 | C88: 4 | D88: 2 | E88: 5 | F88: 11425 | G88: 0.4947654
A89: 1 | B89: 1 | C89: 4 | D89: 3 | E89: 1 | F89: 11431 | G89: 0.7800223
A90: 1 | B90: 1 | C90: 4 | D90: 3 | E90: 2 | F90: 11432 | G90: 0.7219366
A91: 1 | B91: 1 | C91: 4 | D91: 3 | E91: 3 | F91: 11433 | G91: 0.6842684
A92: 1 | B92: 1 | C92: 4 | D92: 3 | E92: 4 | F92: 11434 | G92: 0.5473187
A93: 1 | B93: 1 | C93: 4 | D93: 3 | E93: 5 | F93: 11435 | G93: 0.484673
A94: 1 | B94: 1 | C94: 4 | D94: 4 | E94: 1 | F94: 11441 | G94: 0.6396281
A95: 1 | B95: 1 | C95: 4 | D95: 4 | E95: 2 | F95: 11442 | G95: 0.5815424
A96: 1 | B96: 1 | C96: 4 | D96: 4 | E96: 3 | F96: 11443 | G96: 0.5438742
A97: 1 | B97: 1 | C97: 4 | D97: 4 | E97: 4 | F97: 11444 | G97: 0.4069245
A98: 1 | B98: 1 | C98: 4 | D98: 4 | E98: 5 | F98: 11445 | G98: 0.3442788
A99: 1 | B99: 1 | C99: 4 | D99: 5 | E99: 1 | F99: 11451 | G99: 0.5900814
A100: 1 | B100: 1 | C100: 4 | D100: 5 | E100: 2 | F100: 11452 | G100: 0.5319957
A101: 1 | B101: 1 | C101: 4 | D101: 5 | E101: 3 | F101: 11453 | G101: 0.4943275
A102: 1 | B102: 1 | C102: 4 | D102: 5 | E102: 4 | F102: 11454 | G102: 0.3573778
A103: 1 | B103: 1 | C103: 4 | D103: 5 | E103: 5 | F103: 11455 | G103: 0.2947321
A104: 1 | B104: 1 | C104: 5 | D104: 1 | E104: 1 | F104: 11511 | G104: 0.751669
A105: 1 | B105: 1 | C105: 5 | D105: 1 | E105: 2 | F105: 11512 | G105: 0.6935833
A106: 1 | B106: 1 | C106: 5 | D106: 1 | E106: 3 | F106: 11513 | G106: 0.6559151
A107: 1 | B107: 1 | C107: 5 | D107: 1 | E107: 4 | F107: 11514 | G107: 0.5189654
A108: 1 | B108: 1 | C108: 5 | D108: 1 | E108: 5 | F108: 11515 | G108: 0.4563197
A109: 1 | B109: 1 | C109: 5 | D109: 2 | E109: 1 | F109: 11521 | G109: 0.6952692
A110: 1 | B110: 1 | C110: 5 | D110: 2 | E110: 2 | F110: 11522 | G110: 0.6371835
A111: 1 | B111: 1 | C111: 5 | D111: 2 | E111: 3 | F111: 11523 | G111: 0.5995153
A112: 1 | B112: 1 | C112: 5 | D112: 2 | E112: 4 | F112: 11524 | G112: 0.4625656
A113: 1 | B113: 1 | C113: 5 | D113: 2 | E113: 5 | F113: 11525 | G113: 0.3999199
A114: 1 | B114: 1 | C114: 5 | D114: 3 | E114: 1 | F114: 11531 | G114: 0.6851768
A115: 1 | B115: 1 | C115: 5 | D115: 3 | E115: 2 | F115: 11532 | G115: 0.6270911
A116: 1 | B116: 1 | C116: 5 | D116: 3 | E116: 3 | F116: 11533 | G116: 0.5894229
A117: 1 | B117: 1 | C117: 5 | D117: 3 | E117: 4 | F117: 11534 | G117: 0.4524732
A118: 1 | B118: 1 | C118: 5 | D118: 3 | E118: 5 | F118: 11535 | G118: 0.3898275
A119: 1 | B119: 1 | C119: 5 | D119: 4 | E119: 1 | F119: 11541 | G119: 0.5447826
A120: 1 | B120: 1 | C120: 5 | D120: 4 | E120: 2 | F120: 11542 | G120: 0.4866969
A121: 1 | B121: 1 | C121: 5 | D121: 4 | E121: 3 | F121: 11543 | G121: 0.4490287
A122: 1 | B122: 1 | C122: 5 | D122: 4 | E122: 4 | F122: 11544 | G122: 0.312079
A123: 1 | B123: 1 | C123: 5 | D123: 4 | E123: 5 | F123: 11545 | G123: 0.2494333
A124: 1 | B124: 1 | C124: 5 | D124: 5 | E124: 1 | F124: 11551 | G124: 0.4952359
A125: 1 | B125: 1 | C125: 5 | D125: 5 | E125: 2 | F125: 11552 | G125: 0.4371502
A126: 1 | B126: 1 | C126: 5 | D126: 5 | E126: 3 | F126: 11553 | G126: 0.399482
A127: 1 | B127: 1 | C127: 5 | D127: 5 | E127: 4 | F127: 11554 | G127: 0.2625323
A128: 1 | B128: 1 | C128: 5 | D128: 5 | E128: 5 | F128: 11555 | G128: 0.1998866
A129: 1 | B129: 2 | C129: 1 | D129: 1 | E129: 1 | F129: 12111 | G129: 0.9418707
A130: 1 | B130: 2 | C130: 1 | D130: 1 | E130: 2 | F130: 12112 | G130: 0.883785
A131: 1 | B131: 2 | C131: 1 | D131: 1 | E131: 3 | F131: 12113 | G131: 0.8461168
A132: 1 | B132: 2 | C132: 1 | D132: 1 | E132: 4 | F132: 12114 | G132: 0.7091671
A133: 1 | B133: 2 | C133: 1 | D133: 1 | E133: 5 | F133: 12115 | G133: 0.6465214
A134: 1 | B134: 2 | C134: 1 | D134: 2 | E134: 1 | F134: 12121 | G134: 0.8854709
A135: 1 | B135: 2 | C135: 1 | D135: 2 | E135: 2 | F135: 12122 | G135: 0.8273852
A136: 1 | B136: 2 | C136: 1 | D136: 2 | E136: 3 | F136: 12123 | G136: 0.789717
A137: 1 | B137: 2 | C137: 1 | D137: 2 | E137: 4 | F137: 12124 | G137: 0.6527673
A138: 1 | B138: 2 | C138: 1 | D138: 2 | E138: 5 | F138: 12125 | G138: 0.5901216
A139: 1 | B139: 2 | C139: 1 | D139: 3 | E139: 1 | F139: 12131 | G139: 0.8753785
A140: 1 | B140: 2 | C140: 1 | D140: 3 | E140: 2 | F140: 12132 | G140: 0.8172928
A141: 1 | B141: 2 | C141: 1 | D141: 3 | E141: 3 | F141: 12133 | G141: 0.7796246
A142: 1 | B142: 2 | C142: 1 | D142: 3 | E142: 4 | F142: 12134 | G142: 0.6426749
A143: 1 | B143: 2 | C143: 1 | D143: 3 | E143: 5 | F143: 12135 | G143: 0.5800292
A144: 1 | B144: 2 | C144: 1 | D144: 4 | E144: 1 | F144: 12141 | G144: 0.7349843
A145: 1 | B145: 2 | C145: 1 | D145: 4 | E145: 2 | F145: 12142 | G145: 0.6768986
A146: 1 | B146: 2 | C146: 1 | D146: 4 | E146: 3 | F146: 12143 | G146: 0.6392304
A147: 1 | B147: 2 | C147: 1 | D147: 4 | E147: 4 | F147: 12144 | G147: 0.5022807
A148: 1 | B148: 2 | C148: 1 | D148: 4 | E148: 5 | F148: 12145 | G148: 0.439635
A149: 1 | B149: 2 | C149: 1 | D149: 5 | E149: 1 | F149: 12151 | G149: 0.6854376
A150: 1 | B150: 2 | C150: 1 | D150: 5 | E150: 2 | F150: 12152 | G150: 0.6273519
A151: 1 | B151: 2 | C151: 1 | D151: 5 | E151: 3 | F151: 12153 | G151: 0.5896837
A152: 1 | B152: 2 | C152: 1 | D152: 5 | E152: 4 | F152: 12154 | G152: 0.452734
A153: 1 | B153: 2 | C153: 1 | D153: 5 | E153: 5 | F153: 12155 | G153: 0.3900883
A154: 1 | B154: 2 | C154: 2 | D154: 1 | E154: 1 | F154: 12211 | G154: 0.8836163
A155: 1 | B155: 2 | C155: 2 | D155: 1 | E155: 2 | F155: 12212 | G155: 0.8255306
A156: 1 | B156: 2 | C156: 2 | D156: 1 | E156: 3 | F156: 12213 | G156: 0.7878624
A157: 1 | B157: 2 | C157: 2 | D157: 1 | E157: 4 | F157: 12214 | G157: 0.6509127
A158: 1 | B158: 2 | C158: 2 | D158: 1 | E158: 5 | F158: 12215 | G158: 0.588267
A159: 1 | B159: 2 | C159: 2 | D159: 2 | E159: 1 | F159: 12221 | G159: 0.8272165
A160: 1 | B160: 2 | C160: 2 | D160: 2 | E160: 2 | F160: 12222 | G160: 0.7691308
A161: 1 | B161: 2 | C161: 2 | D161: 2 | E161: 3 | F161: 12223 | G161: 0.7314626
A162: 1 | B162: 2 | C162: 2 | D162: 2 | E162: 4 | F162: 12224 | G162: 0.5945129
A163: 1 | B163: 2 | C163: 2 | D163: 2 | E163: 5 | F163: 12225 | G163: 0.5318672
A164: 1 | B164: 2 | C164: 2 | D164: 3 | E164: 1 | F164: 12231 | G164: 0.8171241
A165: 1 | B165: 2 | C165: 2 | D165: 3 | E165: 2 | F165: 12232 | G165: 0.7590384
A166: 1 | B166: 2 | C166: 2 | D166: 3 | E166: 3 | F166: 12233 | G166: 0.7213702
A167: 1 | B167: 2 | C167: 2 | D167: 3 | E167: 4 | F167: 12234 | G167: 0.5844205
A168: 1 | B168: 2 | C168: 2 | D168: 3 | E168: 5 | F168: 12235 | G168: 0.5217748
A169: 1 | B169: 2 | C169: 2 | D169: 4 | E169: 1 | F169: 12241 | G169: 0.6767299
A170: 1 | B170: 2 | C170: 2 | D170: 4 | E170: 2 | F170: 12242 | G170: 0.6186442
A171: 1 | B171: 2 | C171: 2 | D171: 4 | E171: 3 | F171: 12243 | G171: 0.580976
A172: 1 | B172: 2 | C172: 2 | D172: 4 | E172: 4 | F172: 12244 | G172: 0.4440263
A173: 1 | B173: 2 | C173: 2 | D173: 4 | E173: 5 | F173: 12245 | G173: 0.3813806
A174: 1 | B174: 2 | C174: 2 | D174: 5 | E174: 1 | F174: 12251 | G174: 0.6271832
A175: 1 | B175: 2 | C175: 2 | D175: 5 | E175: 2 | F175: 12252 | G175: 0.5690975
A176: 1 | B176: 2 | C176: 2 | D176: 5 | E176: 3 | F176: 12253 | G176: 0.5314293
A177: 1 | B177: 2 | C177: 2 | D177: 5 | E177: 4 | F177: 12254 | G177: 0.3944796
A178: 1 | B178: 2 | C178: 2 | D178: 5 | E178: 5 | F178: 12255 | G178: 0.3318339
A179: 1 | B179: 2 | C179: 3 | D179: 1 | E179: 1 | F179: 12311 | G179: 0.8706733
A180: 1 | B180: 2 | C180: 3 | D180: 1 | E180: 2 | F180: 12312 | G180: 0.8125876
A181: 1 | B181: 2 | C181: 3 | D181: 1 | E181: 3 | F181: 12313 | G181: 0.7749194
A182: 1 | B182: 2 | C182: 3 | D182: 1 | E182: 4 | F182: 12314 | G182: 0.6379697
A183: 1 | B183: 2 | C183: 3 | D183: 1 | E183: 5 | F183: 12315 | G183: 0.575324
A184: 1 | B184: 2 | C184: 3 | D184: 2 | E184: 1 | F184: 12321 | G184: 0.8142735
A185: 1 | B185: 2 | C185: 3 | D185: 2 | E185: 2 | F185: 12322 | G185: 0.7561878
A186: 1 | B186: 2 | C186: 3 | D186: 2 | E186: 3 | F186: 12323 | G186: 0.7185196
A187: 1 | B187: 2 | C187: 3 | D187: 2 | E187: 4 | F187: 12324 | G187: 0.5815699
A188: 1 | B188: 2 | C188: 3 | D188: 2 | E188: 5 | F188: 12325 | G188: 0.5189242
A189: 1 | B189: 2 | C189: 3 | D189: 3 | E189: 1 | F189: 12331 | G189: 0.8041811
A190: 1 | B190: 2 | C190: 3 | D190: 3 | E190: 2 | F190: 12332 | G190: 0.7460954
A191: 1 | B191: 2 | C191: 3 | D191: 3 | E191: 3 | F191: 12333 | G191: 0.7084272
A192: 1 | B192: 2 | C192: 3 | D192: 3 | E192: 4 | F192: 12334 | G192: 0.5714775
A193: 1 | B193: 2 | C193: 3 | D193: 3 | E193: 5 | F193: 12335 | G193: 0.5088318
A194: 1 | B194: 2 | C194: 3 | D194: 4 | E194: 1 | F194: 12341 | G194: 0.6637869
A195: 1 | B195: 2 | C195: 3 | D195: 4 | E195: 2 | F195: 12342 | G195: 0.6057012
A196: 1 | B196: 2 | C196: 3 | D196: 4 | E196: 3 | F196: 12343 | G196: 0.568033
A197: 1 | B197: 2 | C197: 3 | D197: 4 | E197: 4 | F197: 12344 | G197: 0.4310833
A198: 1 | B198: 2 | C198: 3 | D198: 4 | E198: 5 | F198: 12345 | G198: 0.3684376
A199: 1 | B199: 2 | C199: 3 | D199: 5 | E199: 1 | F199: 12351 | G199: 0.6142402
A200: 1 | B200: 2 | C200: 3 | D200: 5 | E200: 2 | F200: 12352 | G200: 0.5561545
A201: 1 | B201: 2 | C201: 3 | D201: 5 | E201: 3 | F201: 12353 | G201: 0.5184863
... 2927 more rows

Sheet tariffs2 (hidden)
A1: health status | G1: severity level | H1: MO | I1: SC | J1: UA | K1: PD | L1: AD | M1: Utility
A2: 11111 | B2: =INT(LEFT(A2,1)) -> 1 | C2: =INT(MID(A2,2,1)) -> 1 | D2: =INT(MID(A2,3,1)) -> 1 | E2: =INT(MID(A2,4,1)) -> 1 | F2: =INT(RIGHT(A2,1)) -> 1 | G2: =SUM(B2:F2) -> 5 | H2: =IF(B2=1,"0",VLOOKUP(B2,coefficient2!$A$4:$B$7,2,FALSE)) -> 0 | I2: =IF(C2=1,"0",VLOOKUP(C2,coefficient2!$A$10:$B$13,2,FALSE)) -> 0 | J2: =IF(D2=1,"0",VLOOKUP(D2,coefficient2!$A$16:$B$19,2,FALSE)) -> 0 | K2: =IF(E2=1,"0",VLOOKUP(E2,coefficient2!$A$22:$B$25,2,FALSE)) -> 0 | L2: =IF(F2=1,"0",VLOOKUP(F2,coefficient2!$A$28:$A$31,2,FALSE)) -> 0 | M2: =1-H2-I2-J2-K2-L2 -> 1
A3: 11112 | B3: =INT(LEFT(A3,1)) -> 1 | C3: =INT(MID(A3,2,1)) -> 1 | D3: =INT(MID(A3,3,1)) -> 1 | E3: =INT(MID(A3,4,1)) -> 1 | F3: =INT(RIGHT(A3,1)) -> 2 | G3: =SUM(B3:F3) -> 6 | H3: =IF(B3=1,"0",VLOOKUP(B3,coefficient2!$A$4:$B$7,2,FALSE)) -> 0 | I3: =IF(C3=1,"0",VLOOKUP(C3,coefficient2!$A$10:$B$13,2,FALSE)) -> 0 | J3: =IF(D3=1,"0",VLOOKUP(D3,coefficient2!$A$16:$B$19,2,FALSE)) -> 0 | K3: =IF(E3=1,"0",VLOOKUP(E3,coefficient2!$A$22:$B$25,2,FALSE)) -> 0 | L3: =IF(F3=1,"0",VLOOKUP(F3,coefficient2!$A$28:$B$31,2,FALSE)) -> 0.0580857 | M3: 0.9419143
A4: 11113 | B4: 1 | C4: 1 | D4: 1 | E4: 1 | F4: 3 | G4: 7 | H4: =IF(B4=1,"0",VLOOKUP(B4,coefficient2!$A$4:$B$7,2,FALSE)) -> 0 | I4: =IF(C4=1,"0",VLOOKUP(C4,coefficient2!$A$10:$B$13,2,FALSE)) -> 0 | J4: =IF(D4=1,"0",VLOOKUP(D4,coefficient2!$A$16:$B$19,2,FALSE)) -> 0 | K4: =IF(E4=1,"0",VLOOKUP(E4,coefficient2!$A$22:$B$25,2,FALSE)) -> 0 | L4: =IF(F4=1,"0",VLOOKUP(F4,coefficient2!$A$28:$B$31,2,FALSE)) -> 0.0957539 | M4: 0.9042461
A5: 11114 | B5: 1 | C5: 1 | D5: 1 | E5: 1 | F5: 4 | G5: 8 | H5: =IF(B5=1,"0",VLOOKUP(B5,coefficient2!$A$4:$B$7,2,FALSE)) -> 0 | I5: =IF(C5=1,"0",VLOOKUP(C5,coefficient2!$A$10:$B$13,2,FALSE)) -> 0 | J5: =IF(D5=1,"0",VLOOKUP(D5,coefficient2!$A$16:$B$19,2,FALSE)) -> 0 | K5: =IF(E5=1,"0",VLOOKUP(E5,coefficient2!$A$22:$B$25,2,FALSE)) -> 0 | L5: =IF(F5=1,"0",VLOOKUP(F5,coefficient2!$A$28:$B$31,2,FALSE)) -> 0.2327036 | M5: 0.7672964
A6: 11115 | B6: 1 | C6: 1 | D6: 1 | E6: 1 | F6: 5 | G6: 9 | H6: =IF(B6=1,"0",VLOOKUP(B6,coefficient2!$A$4:$B$7,2,FALSE)) -> 0 | I6: =IF(C6=1,"0",VLOOKUP(C6,coefficient2!$A$10:$B$13,2,FALSE)) -> 0 | J6: =IF(D6=1,"0",VLOOKUP(D6,coefficient2!$A$16:$B$19,2,FALSE)) -> 0 | K6: =IF(E6=1,"0",VLOOKUP(E6,coefficient2!$A$22:$B$25,2,FALSE)) -> 0 | L6: =IF(F6=1,"0",VLOOKUP(F6,coefficient2!$A$28:$B$31,2,FALSE)) -> 0.2953493 | M6: 0.7046507
A7: 11121 | B7: 1 | C7: 1 | D7: 1 | E7: 2 | F7: 1 | G7: 6 | H7: =IF(B7=1,"0",VLOOKUP(B7,coefficient2!$A$4:$B$7,2,FALSE)) -> 0 | I7: =IF(C7=1,"0",VLOOKUP(C7,coefficient2!$A$10:$B$13,2,FALSE)) -> 0 | J7: =IF(D7=1,"0",VLOOKUP(D7,coefficient2!$A$16:$B$19,2,FALSE)) -> 0 | K7: =IF(E7=1,"0",VLOOKUP(E7,coefficient2!$A$22:$B$25,2,FALSE)) -> 0.0563998 | L7: =IF(F7=1,"0",VLOOKUP(F7,coefficient2!$A$28:$B$31,2,FALSE)) -> 0 | M7: 0.9436002
A8: 11122 | B8: 1 | C8: 1 | D8: 1 | E8: 2 | F8: 2 | G8: 7 | H8: =IF(B8=1,"0",VLOOKUP(B8,coefficient2!$A$4:$B$7,2,FALSE)) -> 0 | I8: =IF(C8=1,"0",VLOOKUP(C8,coefficient2!$A$10:$B$13,2,FALSE)) -> 0 | J8: =IF(D8=1,"0",VLOOKUP(D8,coefficient2!$A$16:$B$19,2,FALSE)) -> 0 | K8: =IF(E8=1,"0",VLOOKUP(E8,coefficient2!$A$22:$B$25,2,FALSE)) -> 0.0563998 | L8: =IF(F8=1,"0",VLOOKUP(F8,coefficient2!$A$28:$B$31,2,FALSE)) -> 0.0580857 | M8: 0.8855145
A9: 11123 | B9: 1 | C9: 1 | D9: 1 | E9: 2 | F9: 3 | G9: 8 | H9: =IF(B9=1,"0",VLOOKUP(B9,coefficient2!$A$4:$B$7,2,FALSE)) -> 0 | I9: =IF(C9=1,"0",VLOOKUP(C9,coefficient2!$A$10:$B$13,2,FALSE)) -> 0 | J9: =IF(D9=1,"0",VLOOKUP(D9,coefficient2!$A$16:$B$19,2,FALSE)) -> 0 | K9: =IF(E9=1,"0",VLOOKUP(E9,coefficient2!$A$22:$B$25,2,FALSE)) -> 0.0563998 | L9: =IF(F9=1,"0",VLOOKUP(F9,coefficient2!$A$28:$B$31,2,FALSE)) -> 0.0957539 | M9: 0.8478463
A10: 11124 | B10: 1 | C10: 1 | D10: 1 | E10: 2 | F10: 4 | G10: 9 | H10: =IF(B10=1,"0",VLOOKUP(B10,coefficient2!$A$4:$B$7,2,FALSE)) -> 0 | I10: =IF(C10=1,"0",VLOOKUP(C10,coefficient2!$A$10:$B$13,2,FALSE)) -> 0 | J10: =IF(D10=1,"0",VLOOKUP(D10,coefficient2!$A$16:$B$19,2,FALSE)) -> 0 | K10: =IF(E10=1,"0",VLOOKUP(E10,coefficient2!$A$22:$B$25,2,FALSE)) -> 0.0563998 | L10: =IF(F10=1,"0",VLOOKUP(F10,coefficient2!$A$28:$B$31,2,FALSE)) -> 0.2327036 | M10: 0.7108966
A11: 11125 | B11: 1 | C11: 1 | D11: 1 | E11: 2 | F11: 5 | G11: 10 | H11: =IF(B11=1,"0",VLOOKUP(B11,coefficient2!$A$4:$B$7,2,FALSE)) -> 0 | I11: =IF(C11=1,"0",VLOOKUP(C11,coefficient2!$A$10:$B$13,2,FALSE)) -> 0 | J11: =IF(D11=1,"0",VLOOKUP(D11,coefficient2!$A$16:$B$19,2,FALSE)) -> 0 | K11: =IF(E11=1,"0",VLOOKUP(E11,coefficient2!$A$22:$B$25,2,FALSE)) -> 0.0563998 | L11: =IF(F11=1,"0",VLOOKUP(F11,coefficient2!$A$28:$B$31,2,FALSE)) -> 0.2953493 | M11: 0.6482509
A12: 11131 | B12: 1 | C12: 1 | D12: 1 | E12: 3 | F12: 1 | G12: 7 | H12: =IF(B12=1,"0",VLOOKUP(B12,coefficient2!$A$4:$B$7,2,FALSE)) -> 0 | I12: =IF(C12=1,"0",VLOOKUP(C12,coefficient2!$A$10:$B$13,2,FALSE)) -> 0 | J12: =IF(D12=1,"0",VLOOKUP(D12,coefficient2!$A$16:$B$19,2,FALSE)) -> 0 | K12: =IF(E12=1,"0",VLOOKUP(E12,coefficient2!$A$22:$B$25,2,FALSE)) -> 0.0664922 | L12: =IF(F12=1,"0",VLOOKUP(F12,coefficient2!$A$28:$B$31,2,FALSE)) -> 0 | M12: 0.9335078
A13: 11132 | B13: 1 | C13: 1 | D13: 1 | E13: 3 | F13: 2 | G13: 8 | H13: =IF(B13=1,"0",VLOOKUP(B13,coefficient2!$A$4:$B$7,2,FALSE)) -> 0 | I13: =IF(C13=1,"0",VLOOKUP(C13,coefficient2!$A$10:$B$13,2,FALSE)) -> 0 | J13: =IF(D13=1,"0",VLOOKUP(D13,coefficient2!$A$16:$B$19,2,FALSE)) -> 0 | K13: =IF(E13=1,"0",VLOOKUP(E13,coefficient2!$A$22:$B$25,2,FALSE)) -> 0.0664922 | L13: =IF(F13=1,"0",VLOOKUP(F13,coefficient2!$A$28:$B$31,2,FALSE)) -> 0.0580857 | M13: 0.8754221
A14: 11133 | B14: 1 | C14: 1 | D14: 1 | E14: 3 | F14: 3 | G14: 9 | H14: =IF(B14=1,"0",VLOOKUP(B14,coefficient2!$A$4:$B$7,2,FALSE)) -> 0 | I14: =IF(C14=1,"0",VLOOKUP(C14,coefficient2!$A$10:$B$13,2,FALSE)) -> 0 | J14: =IF(D14=1,"0",VLOOKUP(D14,coefficient2!$A$16:$B$19,2,FALSE)) -> 0 | K14: =IF(E14=1,"0",VLOOKUP(E14,coefficient2!$A$22:$B$25,2,FALSE)) -> 0.0664922 | L14: =IF(F14=1,"0",VLOOKUP(F14,coefficient2!$A$28:$B$31,2,FALSE)) -> 0.0957539 | M14: 0.8377539
A15: 11134 | B15: 1 | C15: 1 | D15: 1 | E15: 3 | F15: 4 | G15: 10 | H15: =IF(B15=1,"0",VLOOKUP(B15,coefficient2!$A$4:$B$7,2,FALSE)) -> 0 | I15: =IF(C15=1,"0",VLOOKUP(C15,coefficient2!$A$10:$B$13,2,FALSE)) -> 0 | J15: =IF(D15=1,"0",VLOOKUP(D15,coefficient2!$A$16:$B$19,2,FALSE)) -> 0 | K15: =IF(E15=1,"0",VLOOKUP(E15,coefficient2!$A$22:$B$25,2,FALSE)) -> 0.0664922 | L15: =IF(F15=1,"0",VLOOKUP(F15,coefficient2!$A$28:$B$31,2,FALSE)) -> 0.2327036 | M15: 0.7008042
A16: 11135 | B16: 1 | C16: 1 | D16: 1 | E16: 3 | F16: 5 | G16: 11 | H16: =IF(B16=1,"0",VLOOKUP(B16,coefficient2!$A$4:$B$7,2,FALSE)) -> 0 | I16: =IF(C16=1,"0",VLOOKUP(C16,coefficient2!$A$10:$B$13,2,FALSE)) -> 0 | J16: =IF(D16=1,"0",VLOOKUP(D16,coefficient2!$A$16:$B$19,2,FALSE)) -> 0 | K16: =IF(E16=1,"0",VLOOKUP(E16,coefficient2!$A$22:$B$25,2,FALSE)) -> 0.0664922 | L16: =IF(F16=1,"0",VLOOKUP(F16,coefficient2!$A$28:$B$31,2,FALSE)) -> 0.2953493 | M16: 0.6381585
A17: 11141 | B17: 1 | C17: 1 | D17: 1 | E17: 4 | F17: 1 | G17: 8 | H17: =IF(B17=1,"0",VLOOKUP(B17,coefficient2!$A$4:$B$7,2,FALSE)) -> 0 | I17: =IF(C17=1,"0",VLOOKUP(C17,coefficient2!$A$10:$B$13,2,FALSE)) -> 0 | J17: =IF(D17=1,"0",VLOOKUP(D17,coefficient2!$A$16:$B$19,2,FALSE)) -> 0 | K17: =IF(E17=1,"0",VLOOKUP(E17,coefficient2!$A$22:$B$25,2,FALSE)) -> 0.2068864 | L17: =IF(F17=1,"0",VLOOKUP(F17,coefficient2!$A$28:$B$31,2,FALSE)) -> 0 | M17: 0.7931136
A18: 11142 | B18: 1 | C18: 1 | D18: 1 | E18: 4 | F18: 2 | G18: 9 | H18: =IF(B18=1,"0",VLOOKUP(B18,coefficient2!$A$4:$B$7,2,FALSE)) -> 0 | I18: =IF(C18=1,"0",VLOOKUP(C18,coefficient2!$A$10:$B$13,2,FALSE)) -> 0 | J18: =IF(D18=1,"0",VLOOKUP(D18,coefficient2!$A$16:$B$19,2,FALSE)) -> 0 | K18: =IF(E18=1,"0",VLOOKUP(E18,coefficient2!$A$22:$B$25,2,FALSE)) -> 0.2068864 | L18: =IF(F18=1,"0",VLOOKUP(F18,coefficient2!$A$28:$B$31,2,FALSE)) -> 0.0580857 | M18: 0.7350279
A19: 11143 | B19: 1 | C19: 1 | D19: 1 | E19: 4 | F19: 3 | G19: 10 | H19: =IF(B19=1,"0",VLOOKUP(B19,coefficient2!$A$4:$B$7,2,FALSE)) -> 0 | I19: =IF(C19=1,"0",VLOOKUP(C19,coefficient2!$A$10:$B$13,2,FALSE)) -> 0 | J19: =IF(D19=1,"0",VLOOKUP(D19,coefficient2!$A$16:$B$19,2,FALSE)) -> 0 | K19: =IF(E19=1,"0",VLOOKUP(E19,coefficient2!$A$22:$B$25,2,FALSE)) -> 0.2068864 | L19: =IF(F19=1,"0",VLOOKUP(F19,coefficient2!$A$28:$B$31,2,FALSE)) -> 0.0957539 | M19: 0.6973597
A20: 11144 | B20: 1 | C20: 1 | D20: 1 | E20: 4 | F20: 4 | G20: 11 | H20: =IF(B20=1,"0",VLOOKUP(B20,coefficient2!$A$4:$B$7,2,FALSE)) -> 0 | I20: =IF(C20=1,"0",VLOOKUP(C20,coefficient2!$A$10:$B$13,2,FALSE)) -> 0 | J20: =IF(D20=1,"0",VLOOKUP(D20,coefficient2!$A$16:$B$19,2,FALSE)) -> 0 | K20: =IF(E20=1,"0",VLOOKUP(E20,coefficient2!$A$22:$B$25,2,FALSE)) -> 0.2068864 | L20: =IF(F20=1,"0",VLOOKUP(F20,coefficient2!$A$28:$B$31,2,FALSE)) -> 0.2327036 | M20: 0.56041
A21: 11145 | B21: 1 | C21: 1 | D21: 1 | E21: 4 | F21: 5 | G21: 12 | H21: =IF(B21=1,"0",VLOOKUP(B21,coefficient2!$A$4:$B$7,2,FALSE)) -> 0 | I21: =IF(C21=1,"0",VLOOKUP(C21,coefficient2!$A$10:$B$13,2,FALSE)) -> 0 | J21: =IF(D21=1,"0",VLOOKUP(D21,coefficient2!$A$16:$B$19,2,FALSE)) -> 0 | K21: =IF(E21=1,"0",VLOOKUP(E21,coefficient2!$A$22:$B$25,2,FALSE)) -> 0.2068864 | L21: =IF(F21=1,"0",VLOOKUP(F21,coefficient2!$A$28:$B$31,2,FALSE)) -> 0.2953493 | M21: 0.4977643
A22: 11151 | B22: 1 | C22: 1 | D22: 1 | E22: 5 | F22: 1 | G22: 9 | H22: =IF(B22=1,"0",VLOOKUP(B22,coefficient2!$A$4:$B$7,2,FALSE)) -> 0 | I22: =IF(C22=1,"0",VLOOKUP(C22,coefficient2!$A$10:$B$13,2,FALSE)) -> 0 | J22: =IF(D22=1,"0",VLOOKUP(D22,coefficient2!$A$16:$B$19,2,FALSE)) -> 0 | K22: =IF(E22=1,"0",VLOOKUP(E22,coefficient2!$A$22:$B$25,2,FALSE)) -> 0.2564331 | L22: =IF(F22=1,"0",VLOOKUP(F22,coefficient2!$A$28:$B$31,2,FALSE)) -> 0 | M22: 0.7435669
A23: 11152 | B23: 1 | C23: 1 | D23: 1 | E23: 5 | F23: 2 | G23: 10 | H23: =IF(B23=1,"0",VLOOKUP(B23,coefficient2!$A$4:$B$7,2,FALSE)) -> 0 | I23: =IF(C23=1,"0",VLOOKUP(C23,coefficient2!$A$10:$B$13,2,FALSE)) -> 0 | J23: =IF(D23=1,"0",VLOOKUP(D23,coefficient2!$A$16:$B$19,2,FALSE)) -> 0 | K23: =IF(E23=1,"0",VLOOKUP(E23,coefficient2!$A$22:$B$25,2,FALSE)) -> 0.2564331 | L23: =IF(F23=1,"0",VLOOKUP(F23,coefficient2!$A$28:$B$31,2,FALSE)) -> 0.0580857 | M23: 0.6854812
A24: 11153 | B24: 1 | C24: 1 | D24: 1 | E24: 5 | F24: 3 | G24: 11 | H24: =IF(B24=1,"0",VLOOKUP(B24,coefficient2!$A$4:$B$7,2,FALSE)) -> 0 | I24: =IF(C24=1,"0",VLOOKUP(C24,coefficient2!$A$10:$B$13,2,FALSE)) -> 0 | J24: =IF(D24=1,"0",VLOOKUP(D24,coefficient2!$A$16:$B$19,2,FALSE)) -> 0 | K24: =IF(E24=1,"0",VLOOKUP(E24,coefficient2!$A$22:$B$25,2,FALSE)) -> 0.2564331 | L24: =IF(F24=1,"0",VLOOKUP(F24,coefficient2!$A$28:$B$31,2,FALSE)) -> 0.0957539 | M24: 0.647813
A25: 11154 | B25: 1 | C25: 1 | D25: 1 | E25: 5 | F25: 4 | G25: 12 | H25: =IF(B25=1,"0",VLOOKUP(B25,coefficient2!$A$4:$B$7,2,FALSE)) -> 0 | I25: =IF(C25=1,"0",VLOOKUP(C25,coefficient2!$A$10:$B$13,2,FALSE)) -> 0 | J25: =IF(D25=1,"0",VLOOKUP(D25,coefficient2!$A$16:$B$19,2,FALSE)) -> 0 | K25: =IF(E25=1,"0",VLOOKUP(E25,coefficient2!$A$22:$B$25,2,FALSE)) -> 0.2564331 | L25: =IF(F25=1,"0",VLOOKUP(F25,coefficient2!$A$28:$B$31,2,FALSE)) -> 0.2327036 | M25: 0.5108633
A26: 11155 | B26: 1 | C26: 1 | D26: 1 | E26: 5 | F26: 5 | G26: 13 | H26: =IF(B26=1,"0",VLOOKUP(B26,coefficient2!$A$4:$B$7,2,FALSE)) -> 0 | I26: =IF(C26=1,"0",VLOOKUP(C26,coefficient2!$A$10:$B$13,2,FALSE)) -> 0 | J26: =IF(D26=1,"0",VLOOKUP(D26,coefficient2!$A$16:$B$19,2,FALSE)) -> 0 | K26: =IF(E26=1,"0",VLOOKUP(E26,coefficient2!$A$22:$B$25,2,FALSE)) -> 0.2564331 | L26: =IF(F26=1,"0",VLOOKUP(F26,coefficient2!$A$28:$B$31,2,FALSE)) -> 0.2953493 | M26: 0.4482176
A27: 11211 | B27: 1 | C27: 1 | D27: 2 | E27: 1 | F27: 1 | G27: 6 | H27: =IF(B27=1,"0",VLOOKUP(B27,coefficient2!$A$4:$B$7,2,FALSE)) -> 0 | I27: =IF(C27=1,"0",VLOOKUP(C27,coefficient2!$A$10:$B$13,2,FALSE)) -> 0 | J27: =IF(D27=1,"0",VLOOKUP(D27,coefficient2!$A$16:$B$19,2,FALSE)) -> 0.0582544 | K27: =IF(E27=1,"0",VLOOKUP(E27,coefficient2!$A$22:$B$25,2,FALSE)) -> 0 | L27: =IF(F27=1,"0",VLOOKUP(F27,coefficient2!$A$28:$B$31,2,FALSE)) -> 0 | M27: 0.9417456
A28: 11212 | B28: 1 | C28: 1 | D28: 2 | E28: 1 | F28: 2 | G28: 7 | H28: =IF(B28=1,"0",VLOOKUP(B28,coefficient2!$A$4:$B$7,2,FALSE)) -> 0 | I28: =IF(C28=1,"0",VLOOKUP(C28,coefficient2!$A$10:$B$13,2,FALSE)) -> 0 | J28: =IF(D28=1,"0",VLOOKUP(D28,coefficient2!$A$16:$B$19,2,FALSE)) -> 0.0582544 | K28: =IF(E28=1,"0",VLOOKUP(E28,coefficient2!$A$22:$B$25,2,FALSE)) -> 0 | L28: =IF(F28=1,"0",VLOOKUP(F28,coefficient2!$A$28:$B$31,2,FALSE)) -> 0.0580857 | M28: 0.8836599
A29: 11213 | B29: 1 | C29: 1 | D29: 2 | E29: 1 | F29: 3 | G29: 8 | H29: =IF(B29=1,"0",VLOOKUP(B29,coefficient2!$A$4:$B$7,2,FALSE)) -> 0 | I29: =IF(C29=1,"0",VLOOKUP(C29,coefficient2!$A$10:$B$13,2,FALSE)) -> 0 | J29: =IF(D29=1,"0",VLOOKUP(D29,coefficient2!$A$16:$B$19,2,FALSE)) -> 0.0582544 | K29: =IF(E29=1,"0",VLOOKUP(E29,coefficient2!$A$22:$B$25,2,FALSE)) -> 0 | L29: =IF(F29=1,"0",VLOOKUP(F29,coefficient2!$A$28:$B$31,2,FALSE)) -> 0.0957539 | M29: 0.8459917
A30: 11214 | B30: 1 | C30: 1 | D30: 2 | E30: 1 | F30: 4 | G30: 9 | H30: =IF(B30=1,"0",VLOOKUP(B30,coefficient2!$A$4:$B$7,2,FALSE)) -> 0 | I30: =IF(C30=1,"0",VLOOKUP(C30,coefficient2!$A$10:$B$13,2,FALSE)) -> 0 | J30: =IF(D30=1,"0",VLOOKUP(D30,coefficient2!$A$16:$B$19,2,FALSE)) -> 0.0582544 | K30: =IF(E30=1,"0",VLOOKUP(E30,coefficient2!$A$22:$B$25,2,FALSE)) -> 0 | L30: =IF(F30=1,"0",VLOOKUP(F30,coefficient2!$A$28:$B$31,2,FALSE)) -> 0.2327036 | M30: 0.709042
A31: 11215 | B31: 1 | C31: 1 | D31: 2 | E31: 1 | F31: 5 | G31: 10 | H31: =IF(B31=1,"0",VLOOKUP(B31,coefficient2!$A$4:$B$7,2,FALSE)) -> 0 | I31: =IF(C31=1,"0",VLOOKUP(C31,coefficient2!$A$10:$B$13,2,FALSE)) -> 0 | J31: =IF(D31=1,"0",VLOOKUP(D31,coefficient2!$A$16:$B$19,2,FALSE)) -> 0.0582544 | K31: =IF(E31=1,"0",VLOOKUP(E31,coefficient2!$A$22:$B$25,2,FALSE)) -> 0 | L31: =IF(F31=1,"0",VLOOKUP(F31,coefficient2!$A$28:$B$31,2,FALSE)) -> 0.2953493 | M31: 0.6463963
A32: 11221 | B32: 1 | C32: 1 | D32: 2 | E32: 2 | F32: 1 | G32: 7 | H32: =IF(B32=1,"0",VLOOKUP(B32,coefficient2!$A$4:$B$7,2,FALSE)) -> 0 | I32: =IF(C32=1,"0",VLOOKUP(C32,coefficient2!$A$10:$B$13,2,FALSE)) -> 0 | J32: =IF(D32=1,"0",VLOOKUP(D32,coefficient2!$A$16:$B$19,2,FALSE)) -> 0.0582544 | K32: =IF(E32=1,"0",VLOOKUP(E32,coefficient2!$A$22:$B$25,2,FALSE)) -> 0.0563998 | L32: =IF(F32=1,"0",VLOOKUP(F32,coefficient2!$A$28:$B$31,2,FALSE)) -> 0 | M32: 0.8853458
A33: 11222 | B33: 1 | C33: 1 | D33: 2 | E33: 2 | F33: 2 | G33: 8 | H33: =IF(B33=1,"0",VLOOKUP(B33,coefficient2!$A$4:$B$7,2,FALSE)) -> 0 | I33: =IF(C33=1,"0",VLOOKUP(C33,coefficient2!$A$10:$B$13,2,FALSE)) -> 0 | J33: =IF(D33=1,"0",VLOOKUP(D33,coefficient2!$A$16:$B$19,2,FALSE)) -> 0.0582544 | K33: =IF(E33=1,"0",VLOOKUP(E33,coefficient2!$A$22:$B$25,2,FALSE)) -> 0.0563998 | L33: =IF(F33=1,"0",VLOOKUP(F33,coefficient2!$A$28:$B$31,2,FALSE)) -> 0.0580857 | M33: 0.8272601
A34: 11223 | B34: 1 | C34: 1 | D34: 2 | E34: 2 | F34: 3 | G34: 9 | H34: =IF(B34=1,"0",VLOOKUP(B34,coefficient2!$A$4:$B$7,2,FALSE)) -> 0 | I34: =IF(C34=1,"0",VLOOKUP(C34,coefficient2!$A$10:$B$13,2,FALSE)) -> 0 | J34: =IF(D34=1,"0",VLOOKUP(D34,coefficient2!$A$16:$B$19,2,FALSE)) -> 0.0582544 | K34: =IF(E34=1,"0",VLOOKUP(E34,coefficient2!$A$22:$B$25,2,FALSE)) -> 0.0563998 | L34: =IF(F34=1,"0",VLOOKUP(F34,coefficient2!$A$28:$B$31,2,FALSE)) -> 0.0957539 | M34: 0.7895919
A35: 11224 | B35: 1 | C35: 1 | D35: 2 | E35: 2 | F35: 4 | G35: 10 | H35: =IF(B35=1,"0",VLOOKUP(B35,coefficient2!$A$4:$B$7,2,FALSE)) -> 0 | I35: =IF(C35=1,"0",VLOOKUP(C35,coefficient2!$A$10:$B$13,2,FALSE)) -> 0 | J35: =IF(D35=1,"0",VLOOKUP(D35,coefficient2!$A$16:$B$19,2,FALSE)) -> 0.0582544 | K35: =IF(E35=1,"0",VLOOKUP(E35,coefficient2!$A$22:$B$25,2,FALSE)) -> 0.0563998 | L35: =IF(F35=1,"0",VLOOKUP(F35,coefficient2!$A$28:$B$31,2,FALSE)) -> 0.2327036 | M35: 0.6526422
A36: 11225 | B36: 1 | C36: 1 | D36: 2 | E36: 2 | F36: 5 | G36: 11 | H36: =IF(B36=1,"0",VLOOKUP(B36,coefficient2!$A$4:$B$7,2,FALSE)) -> 0 | I36: =IF(C36=1,"0",VLOOKUP(C36,coefficient2!$A$10:$B$13,2,FALSE)) -> 0 | J36: =IF(D36=1,"0",VLOOKUP(D36,coefficient2!$A$16:$B$19,2,FALSE)) -> 0.0582544 | K36: =IF(E36=1,"0",VLOOKUP(E36,coefficient2!$A$22:$B$25,2,FALSE)) -> 0.0563998 | L36: =IF(F36=1,"0",VLOOKUP(F36,coefficient2!$A$28:$B$31,2,FALSE)) -> 0.2953493 | M36: 0.5899965
A37: 11231 | B37: 1 | C37: 1 | D37: 2 | E37: 3 | F37: 1 | G37: 8 | H37: =IF(B37=1,"0",VLOOKUP(B37,coefficient2!$A$4:$B$7,2,FALSE)) -> 0 | I37: =IF(C37=1,"0",VLOOKUP(C37,coefficient2!$A$10:$B$13,2,FALSE)) -> 0 | J37: =IF(D37=1,"0",VLOOKUP(D37,coefficient2!$A$16:$B$19,2,FALSE)) -> 0.0582544 | K37: =IF(E37=1,"0",VLOOKUP(E37,coefficient2!$A$22:$B$25,2,FALSE)) -> 0.0664922 | L37: =IF(F37=1,"0",VLOOKUP(F37,coefficient2!$A$28:$B$31,2,FALSE)) -> 0 | M37: 0.8752534
A38: 11232 | B38: 1 | C38: 1 | D38: 2 | E38: 3 | F38: 2 | G38: 9 | H38: =IF(B38=1,"0",VLOOKUP(B38,coefficient2!$A$4:$B$7,2,FALSE)) -> 0 | I38: =IF(C38=1,"0",VLOOKUP(C38,coefficient2!$A$10:$B$13,2,FALSE)) -> 0 | J38: =IF(D38=1,"0",VLOOKUP(D38,coefficient2!$A$16:$B$19,2,FALSE)) -> 0.0582544 | K38: =IF(E38=1,"0",VLOOKUP(E38,coefficient2!$A$22:$B$25,2,FALSE)) -> 0.0664922 | L38: =IF(F38=1,"0",VLOOKUP(F38,coefficient2!$A$28:$B$31,2,FALSE)) -> 0.0580857 | M38: 0.8171677
A39: 11233 | B39: 1 | C39: 1 | D39: 2 | E39: 3 | F39: 3 | G39: 10 | H39: =IF(B39=1,"0",VLOOKUP(B39,coefficient2!$A$4:$B$7,2,FALSE)) -> 0 | I39: =IF(C39=1,"0",VLOOKUP(C39,coefficient2!$A$10:$B$13,2,FALSE)) -> 0 | J39: =IF(D39=1,"0",VLOOKUP(D39,coefficient2!$A$16:$B$19,2,FALSE)) -> 0.0582544 | K39: =IF(E39=1,"0",VLOOKUP(E39,coefficient2!$A$22:$B$25,2,FALSE)) -> 0.0664922 | L39: =IF(F39=1,"0",VLOOKUP(F39,coefficient2!$A$28:$B$31,2,FALSE)) -> 0.0957539 | M39: 0.7794995
A40: 11234 | B40: 1 | C40: 1 | D40: 2 | E40: 3 | F40: 4 | G40: 11 | H40: =IF(B40=1,"0",VLOOKUP(B40,coefficient2!$A$4:$B$7,2,FALSE)) -> 0 | I40: =IF(C40=1,"0",VLOOKUP(C40,coefficient2!$A$10:$B$13,2,FALSE)) -> 0 | J40: =IF(D40=1,"0",VLOOKUP(D40,coefficient2!$A$16:$B$19,2,FALSE)) -> 0.0582544 | K40: =IF(E40=1,"0",VLOOKUP(E40,coefficient2!$A$22:$B$25,2,FALSE)) -> 0.0664922 | L40: =IF(F40=1,"0",VLOOKUP(F40,coefficient2!$A$28:$B$31,2,FALSE)) -> 0.2327036 | M40: 0.6425498
A41: 11235 | B41: 1 | C41: 1 | D41: 2 | E41: 3 | F41: 5 | G41: 12 | H41: =IF(B41=1,"0",VLOOKUP(B41,coefficient2!$A$4:$B$7,2,FALSE)) -> 0 | I41: =IF(C41=1,"0",VLOOKUP(C41,coefficient2!$A$10:$B$13,2,FALSE)) -> 0 | J41: =IF(D41=1,"0",VLOOKUP(D41,coefficient2!$A$16:$B$19,2,FALSE)) -> 0.0582544 | K41: =IF(E41=1,"0",VLOOKUP(E41,coefficient2!$A$22:$B$25,2,FALSE)) -> 0.0664922 | L41: =IF(F41=1,"0",VLOOKUP(F41,coefficient2!$A$28:$B$31,2,FALSE)) -> 0.2953493 | M41: 0.5799041
A42: 11241 | B42: 1 | C42: 1 | D42: 2 | E42: 4 | F42: 1 | G42: 9 | H42: =IF(B42=1,"0",VLOOKUP(B42,coefficient2!$A$4:$B$7,2,FALSE)) -> 0 | I42: =IF(C42=1,"0",VLOOKUP(C42,coefficient2!$A$10:$B$13,2,FALSE)) -> 0 | J42: =IF(D42=1,"0",VLOOKUP(D42,coefficient2!$A$16:$B$19,2,FALSE)) -> 0.0582544 | K42: =IF(E42=1,"0",VLOOKUP(E42,coefficient2!$A$22:$B$25,2,FALSE)) -> 0.2068864 | L42: =IF(F42=1,"0",VLOOKUP(F42,coefficient2!$A$28:$B$31,2,FALSE)) -> 0 | M42: 0.7348592
A43: 11242 | B43: 1 | C43: 1 | D43: 2 | E43: 4 | F43: 2 | G43: 10 | H43: =IF(B43=1,"0",VLOOKUP(B43,coefficient2!$A$4:$B$7,2,FALSE)) -> 0 | I43: =IF(C43=1,"0",VLOOKUP(C43,coefficient2!$A$10:$B$13,2,FALSE)) -> 0 | J43: =IF(D43=1,"0",VLOOKUP(D43,coefficient2!$A$16:$B$19,2,FALSE)) -> 0.0582544 | K43: =IF(E43=1,"0",VLOOKUP(E43,coefficient2!$A$22:$B$25,2,FALSE)) -> 0.2068864 | L43: =IF(F43=1,"0",VLOOKUP(F43,coefficient2!$A$28:$B$31,2,FALSE)) -> 0.0580857 | M43: 0.6767735
A44: 11243 | B44: 1 | C44: 1 | D44: 2 | E44: 4 | F44: 3 | G44: 11 | H44: =IF(B44=1,"0",VLOOKUP(B44,coefficient2!$A$4:$B$7,2,FALSE)) -> 0 | I44: =IF(C44=1,"0",VLOOKUP(C44,coefficient2!$A$10:$B$13,2,FALSE)) -> 0 | J44: =IF(D44=1,"0",VLOOKUP(D44,coefficient2!$A$16:$B$19,2,FALSE)) -> 0.0582544 | K44: =IF(E44=1,"0",VLOOKUP(E44,coefficient2!$A$22:$B$25,2,FALSE)) -> 0.2068864 | L44: =IF(F44=1,"0",VLOOKUP(F44,coefficient2!$A$28:$B$31,2,FALSE)) -> 0.0957539 | M44: 0.6391053
A45: 11244 | B45: 1 | C45: 1 | D45: 2 | E45: 4 | F45: 4 | G45: 12 | H45: =IF(B45=1,"0",VLOOKUP(B45,coefficient2!$A$4:$B$7,2,FALSE)) -> 0 | I45: =IF(C45=1,"0",VLOOKUP(C45,coefficient2!$A$10:$B$13,2,FALSE)) -> 0 | J45: =IF(D45=1,"0",VLOOKUP(D45,coefficient2!$A$16:$B$19,2,FALSE)) -> 0.0582544 | K45: =IF(E45=1,"0",VLOOKUP(E45,coefficient2!$A$22:$B$25,2,FALSE)) -> 0.2068864 | L45: =IF(F45=1,"0",VLOOKUP(F45,coefficient2!$A$28:$B$31,2,FALSE)) -> 0.2327036 | M45: 0.5021556
A46: 11245 | B46: 1 | C46: 1 | D46: 2 | E46: 4 | F46: 5 | G46: 13 | H46: =IF(B46=1,"0",VLOOKUP(B46,coefficient2!$A$4:$B$7,2,FALSE)) -> 0 | I46: =IF(C46=1,"0",VLOOKUP(C46,coefficient2!$A$10:$B$13,2,FALSE)) -> 0 | J46: =IF(D46=1,"0",VLOOKUP(D46,coefficient2!$A$16:$B$19,2,FALSE)) -> 0.0582544 | K46: =IF(E46=1,"0",VLOOKUP(E46,coefficient2!$A$22:$B$25,2,FALSE)) -> 0.2068864 | L46: =IF(F46=1,"0",VLOOKUP(F46,coefficient2!$A$28:$B$31,2,FALSE)) -> 0.2953493 | M46: 0.4395099
A47: 11251 | B47: 1 | C47: 1 | D47: 2 | E47: 5 | F47: 1 | G47: 10 | H47: =IF(B47=1,"0",VLOOKUP(B47,coefficient2!$A$4:$B$7,2,FALSE)) -> 0 | I47: =IF(C47=1,"0",VLOOKUP(C47,coefficient2!$A$10:$B$13,2,FALSE)) -> 0 | J47: =IF(D47=1,"0",VLOOKUP(D47,coefficient2!$A$16:$B$19,2,FALSE)) -> 0.0582544 | K47: =IF(E47=1,"0",VLOOKUP(E47,coefficient2!$A$22:$B$25,2,FALSE)) -> 0.2564331 | L47: =IF(F47=1,"0",VLOOKUP(F47,coefficient2!$A$28:$B$31,2,FALSE)) -> 0 | M47: 0.6853125
A48: 11252 | B48: 1 | C48: 1 | D48: 2 | E48: 5 | F48: 2 | G48: 11 | H48: =IF(B48=1,"0",VLOOKUP(B48,coefficient2!$A$4:$B$7,2,FALSE)) -> 0 | I48: =IF(C48=1,"0",VLOOKUP(C48,coefficient2!$A$10:$B$13,2,FALSE)) -> 0 | J48: =IF(D48=1,"0",VLOOKUP(D48,coefficient2!$A$16:$B$19,2,FALSE)) -> 0.0582544 | K48: =IF(E48=1,"0",VLOOKUP(E48,coefficient2!$A$22:$B$25,2,FALSE)) -> 0.2564331 | L48: =IF(F48=1,"0",VLOOKUP(F48,coefficient2!$A$28:$B$31,2,FALSE)) -> 0.0580857 | M48: 0.6272268
A49: 11253 | B49: 1 | C49: 1 | D49: 2 | E49: 5 | F49: 3 | G49: 12 | H49: =IF(B49=1,"0",VLOOKUP(B49,coefficient2!$A$4:$B$7,2,FALSE)) -> 0 | I49: =IF(C49=1,"0",VLOOKUP(C49,coefficient2!$A$10:$B$13,2,FALSE)) -> 0 | J49: =IF(D49=1,"0",VLOOKUP(D49,coefficient2!$A$16:$B$19,2,FALSE)) -> 0.0582544 | K49: =IF(E49=1,"0",VLOOKUP(E49,coefficient2!$A$22:$B$25,2,FALSE)) -> 0.2564331 | L49: =IF(F49=1,"0",VLOOKUP(F49,coefficient2!$A$28:$B$31,2,FALSE)) -> 0.0957539 | M49: 0.5895586
A50: 11254 | B50: 1 | C50: 1 | D50: 2 | E50: 5 | F50: 4 | G50: 13 | H50: =IF(B50=1,"0",VLOOKUP(B50,coefficient2!$A$4:$B$7,2,FALSE)) -> 0 | I50: =IF(C50=1,"0",VLOOKUP(C50,coefficient2!$A$10:$B$13,2,FALSE)) -> 0 | J50: =IF(D50=1,"0",VLOOKUP(D50,coefficient2!$A$16:$B$19,2,FALSE)) -> 0.0582544 | K50: =IF(E50=1,"0",VLOOKUP(E50,coefficient2!$A$22:$B$25,2,FALSE)) -> 0.2564331 | L50: =IF(F50=1,"0",VLOOKUP(F50,coefficient2!$A$28:$B$31,2,FALSE)) -> 0.2327036 | M50: 0.4526089
A51: 11255 | B51: 1 | C51: 1 | D51: 2 | E51: 5 | F51: 5 | G51: 14 | H51: =IF(B51=1,"0",VLOOKUP(B51,coefficient2!$A$4:$B$7,2,FALSE)) -> 0 | I51: =IF(C51=1,"0",VLOOKUP(C51,coefficient2!$A$10:$B$13,2,FALSE)) -> 0 | J51: =IF(D51=1,"0",VLOOKUP(D51,coefficient2!$A$16:$B$19,2,FALSE)) -> 0.0582544 | K51: =IF(E51=1,"0",VLOOKUP(E51,coefficient2!$A$22:$B$25,2,FALSE)) -> 0.2564331 | L51: =IF(F51=1,"0",VLOOKUP(F51,coefficient2!$A$28:$B$31,2,FALSE)) -> 0.2953493 | M51: 0.3899632
A52: 11311 | B52: 1 | C52: 1 | D52: 3 | E52: 1 | F52: 1 | G52: 7 | H52: =IF(B52=1,"0",VLOOKUP(B52,coefficient2!$A$4:$B$7,2,FALSE)) -> 0 | I52: =IF(C52=1,"0",VLOOKUP(C52,coefficient2!$A$10:$B$13,2,FALSE)) -> 0 | J52: =IF(D52=1,"0",VLOOKUP(D52,coefficient2!$A$16:$B$19,2,FALSE)) -> 0.0711974 | K52: =IF(E52=1,"0",VLOOKUP(E52,coefficient2!$A$22:$B$25,2,FALSE)) -> 0 | L52: =IF(F52=1,"0",VLOOKUP(F52,coefficient2!$A$28:$B$31,2,FALSE)) -> 0 | M52: 0.9288026
A53: 11312 | B53: 1 | C53: 1 | D53: 3 | E53: 1 | F53: 2 | G53: 8 | H53: =IF(B53=1,"0",VLOOKUP(B53,coefficient2!$A$4:$B$7,2,FALSE)) -> 0 | I53: =IF(C53=1,"0",VLOOKUP(C53,coefficient2!$A$10:$B$13,2,FALSE)) -> 0 | J53: =IF(D53=1,"0",VLOOKUP(D53,coefficient2!$A$16:$B$19,2,FALSE)) -> 0.0711974 | K53: =IF(E53=1,"0",VLOOKUP(E53,coefficient2!$A$22:$B$25,2,FALSE)) -> 0 | L53: =IF(F53=1,"0",VLOOKUP(F53,coefficient2!$A$28:$B$31,2,FALSE)) -> 0.0580857 | M53: 0.8707169
A54: 11313 | B54: 1 | C54: 1 | D54: 3 | E54: 1 | F54: 3 | G54: 9 | H54: =IF(B54=1,"0",VLOOKUP(B54,coefficient2!$A$4:$B$7,2,FALSE)) -> 0 | I54: =IF(C54=1,"0",VLOOKUP(C54,coefficient2!$A$10:$B$13,2,FALSE)) -> 0 | J54: =IF(D54=1,"0",VLOOKUP(D54,coefficient2!$A$16:$B$19,2,FALSE)) -> 0.0711974 | K54: =IF(E54=1,"0",VLOOKUP(E54,coefficient2!$A$22:$B$25,2,FALSE)) -> 0 | L54: =IF(F54=1,"0",VLOOKUP(F54,coefficient2!$A$28:$B$31,2,FALSE)) -> 0.0957539 | M54: 0.8330487
A55: 11314 | B55: 1 | C55: 1 | D55: 3 | E55: 1 | F55: 4 | G55: 10 | H55: =IF(B55=1,"0",VLOOKUP(B55,coefficient2!$A$4:$B$7,2,FALSE)) -> 0 | I55: =IF(C55=1,"0",VLOOKUP(C55,coefficient2!$A$10:$B$13,2,FALSE)) -> 0 | J55: =IF(D55=1,"0",VLOOKUP(D55,coefficient2!$A$16:$B$19,2,FALSE)) -> 0.0711974 | K55: =IF(E55=1,"0",VLOOKUP(E55,coefficient2!$A$22:$B$25,2,FALSE)) -> 0 | L55: =IF(F55=1,"0",VLOOKUP(F55,coefficient2!$A$28:$B$31,2,FALSE)) -> 0.2327036 | M55: 0.696099
A56: 11315 | B56: 1 | C56: 1 | D56: 3 | E56: 1 | F56: 5 | G56: 11 | H56: =IF(B56=1,"0",VLOOKUP(B56,coefficient2!$A$4:$B$7,2,FALSE)) -> 0 | I56: =IF(C56=1,"0",VLOOKUP(C56,coefficient2!$A$10:$B$13,2,FALSE)) -> 0 | J56: =IF(D56=1,"0",VLOOKUP(D56,coefficient2!$A$16:$B$19,2,FALSE)) -> 0.0711974 | K56: =IF(E56=1,"0",VLOOKUP(E56,coefficient2!$A$22:$B$25,2,FALSE)) -> 0 | L56: =IF(F56=1,"0",VLOOKUP(F56,coefficient2!$A$28:$B$31,2,FALSE)) -> 0.2953493 | M56: 0.6334533
A57: 11321 | B57: 1 | C57: 1 | D57: 3 | E57: 2 | F57: 1 | G57: 8 | H57: =IF(B57=1,"0",VLOOKUP(B57,coefficient2!$A$4:$B$7,2,FALSE)) -> 0 | I57: =IF(C57=1,"0",VLOOKUP(C57,coefficient2!$A$10:$B$13,2,FALSE)) -> 0 | J57: =IF(D57=1,"0",VLOOKUP(D57,coefficient2!$A$16:$B$19,2,FALSE)) -> 0.0711974 | K57: =IF(E57=1,"0",VLOOKUP(E57,coefficient2!$A$22:$B$25,2,FALSE)) -> 0.0563998 | L57: =IF(F57=1,"0",VLOOKUP(F57,coefficient2!$A$28:$B$31,2,FALSE)) -> 0 | M57: 0.8724028
A58: 11322 | B58: 1 | C58: 1 | D58: 3 | E58: 2 | F58: 2 | G58: 9 | H58: =IF(B58=1,"0",VLOOKUP(B58,coefficient2!$A$4:$B$7,2,FALSE)) -> 0 | I58: =IF(C58=1,"0",VLOOKUP(C58,coefficient2!$A$10:$B$13,2,FALSE)) -> 0 | J58: =IF(D58=1,"0",VLOOKUP(D58,coefficient2!$A$16:$B$19,2,FALSE)) -> 0.0711974 | K58: =IF(E58=1,"0",VLOOKUP(E58,coefficient2!$A$22:$B$25,2,FALSE)) -> 0.0563998 | L58: =IF(F58=1,"0",VLOOKUP(F58,coefficient2!$A$28:$B$31,2,FALSE)) -> 0.0580857 | M58: 0.8143171
A59: 11323 | B59: 1 | C59: 1 | D59: 3 | E59: 2 | F59: 3 | G59: 10 | H59: =IF(B59=1,"0",VLOOKUP(B59,coefficient2!$A$4:$B$7,2,FALSE)) -> 0 | I59: =IF(C59=1,"0",VLOOKUP(C59,coefficient2!$A$10:$B$13,2,FALSE)) -> 0 | J59: =IF(D59=1,"0",VLOOKUP(D59,coefficient2!$A$16:$B$19,2,FALSE)) -> 0.0711974 | K59: =IF(E59=1,"0",VLOOKUP(E59,coefficient2!$A$22:$B$25,2,FALSE)) -> 0.0563998 | L59: =IF(F59=1,"0",VLOOKUP(F59,coefficient2!$A$28:$B$31,2,FALSE)) -> 0.0957539 | M59: 0.7766489
A60: 11324 | B60: 1 | C60: 1 | D60: 3 | E60: 2 | F60: 4 | G60: 11 | H60: =IF(B60=1,"0",VLOOKUP(B60,coefficient2!$A$4:$B$7,2,FALSE)) -> 0 | I60: =IF(C60=1,"0",VLOOKUP(C60,coefficient2!$A$10:$B$13,2,FALSE)) -> 0 | J60: =IF(D60=1,"0",VLOOKUP(D60,coefficient2!$A$16:$B$19,2,FALSE)) -> 0.0711974 | K60: =IF(E60=1,"0",VLOOKUP(E60,coefficient2!$A$22:$B$25,2,FALSE)) -> 0.0563998 | L60: =IF(F60=1,"0",VLOOKUP(F60,coefficient2!$A$28:$B$31,2,FALSE)) -> 0.2327036 | M60: 0.6396992
A61: 11325 | B61: 1 | C61: 1 | D61: 3 | E61: 2 | F61: 5 | G61: 12 | H61: =IF(B61=1,"0",VLOOKUP(B61,coefficient2!$A$4:$B$7,2,FALSE)) -> 0 | I61: =IF(C61=1,"0",VLOOKUP(C61,coefficient2!$A$10:$B$13,2,FALSE)) -> 0 | J61: =IF(D61=1,"0",VLOOKUP(D61,coefficient2!$A$16:$B$19,2,FALSE)) -> 0.0711974 | K61: =IF(E61=1,"0",VLOOKUP(E61,coefficient2!$A$22:$B$25,2,FALSE)) -> 0.0563998 | L61: =IF(F61=1,"0",VLOOKUP(F61,coefficient2!$A$28:$B$31,2,FALSE)) -> 0.2953493 | M61: 0.5770535
A62: 11331 | B62: 1 | C62: 1 | D62: 3 | E62: 3 | F62: 1 | G62: 9 | H62: =IF(B62=1,"0",VLOOKUP(B62,coefficient2!$A$4:$B$7,2,FALSE)) -> 0 | I62: =IF(C62=1,"0",VLOOKUP(C62,coefficient2!$A$10:$B$13,2,FALSE)) -> 0 | J62: =IF(D62=1,"0",VLOOKUP(D62,coefficient2!$A$16:$B$19,2,FALSE)) -> 0.0711974 | K62: =IF(E62=1,"0",VLOOKUP(E62,coefficient2!$A$22:$B$25,2,FALSE)) -> 0.0664922 | L62: =IF(F62=1,"0",VLOOKUP(F62,coefficient2!$A$28:$B$31,2,FALSE)) -> 0 | M62: 0.8623104
A63: 11332 | B63: 1 | C63: 1 | D63: 3 | E63: 3 | F63: 2 | G63: 10 | H63: =IF(B63=1,"0",VLOOKUP(B63,coefficient2!$A$4:$B$7,2,FALSE)) -> 0 | I63: =IF(C63=1,"0",VLOOKUP(C63,coefficient2!$A$10:$B$13,2,FALSE)) -> 0 | J63: =IF(D63=1,"0",VLOOKUP(D63,coefficient2!$A$16:$B$19,2,FALSE)) -> 0.0711974 | K63: =IF(E63=1,"0",VLOOKUP(E63,coefficient2!$A$22:$B$25,2,FALSE)) -> 0.0664922 | L63: =IF(F63=1,"0",VLOOKUP(F63,coefficient2!$A$28:$B$31,2,FALSE)) -> 0.0580857 | M63: 0.8042247
A64: 11333 | B64: 1 | C64: 1 | D64: 3 | E64: 3 | F64: 3 | G64: 11 | H64: =IF(B64=1,"0",VLOOKUP(B64,coefficient2!$A$4:$B$7,2,FALSE)) -> 0 | I64: =IF(C64=1,"0",VLOOKUP(C64,coefficient2!$A$10:$B$13,2,FALSE)) -> 0 | J64: =IF(D64=1,"0",VLOOKUP(D64,coefficient2!$A$16:$B$19,2,FALSE)) -> 0.0711974 | K64: =IF(E64=1,"0",VLOOKUP(E64,coefficient2!$A$22:$B$25,2,FALSE)) -> 0.0664922 | L64: =IF(F64=1,"0",VLOOKUP(F64,coefficient2!$A$28:$B$31,2,FALSE)) -> 0.0957539 | M64: 0.7665565
A65: 11334 | B65: 1 | C65: 1 | D65: 3 | E65: 3 | F65: 4 | G65: 12 | H65: =IF(B65=1,"0",VLOOKUP(B65,coefficient2!$A$4:$B$7,2,FALSE)) -> 0 | I65: =IF(C65=1,"0",VLOOKUP(C65,coefficient2!$A$10:$B$13,2,FALSE)) -> 0 | J65: =IF(D65=1,"0",VLOOKUP(D65,coefficient2!$A$16:$B$19,2,FALSE)) -> 0.0711974 | K65: =IF(E65=1,"0",VLOOKUP(E65,coefficient2!$A$22:$B$25,2,FALSE)) -> 0.0664922 | L65: =IF(F65=1,"0",VLOOKUP(F65,coefficient2!$A$28:$B$31,2,FALSE)) -> 0.2327036 | M65: 0.6296068
A66: 11335 | B66: 1 | C66: 1 | D66: 3 | E66: 3 | F66: 5 | G66: 13 | H66: =IF(B66=1,"0",VLOOKUP(B66,coefficient2!$A$4:$B$7,2,FALSE)) -> 0 | I66: =IF(C66=1,"0",VLOOKUP(C66,coefficient2!$A$10:$B$13,2,FALSE)) -> 0 | J66: =IF(D66=1,"0",VLOOKUP(D66,coefficient2!$A$16:$B$19,2,FALSE)) -> 0.0711974 | K66: =IF(E66=1,"0",VLOOKUP(E66,coefficient2!$A$22:$B$25,2,FALSE)) -> 0.0664922 | L66: =IF(F66=1,"0",VLOOKUP(F66,coefficient2!$A$28:$B$31,2,FALSE)) -> 0.2953493 | M66: =1-H66-I66-J66-K66-L66 -> 0.5669611
A67: 11341 | B67: =INT(LEFT(A67,1)) -> 1 | C67: =INT(MID(A67,2,1)) -> 1 | D67: =INT(MID(A67,3,1)) -> 3 | E67: =INT(MID(A67,4,1)) -> 4 | F67: =INT(RIGHT(A67,1)) -> 1 | G67: =SUM(B67:F67) -> 10 | H67: =IF(B67=1,"0",VLOOKUP(B67,coefficient2!$A$4:$B$7,2,FALSE)) -> 0 | I67: =IF(C67=1,"0",VLOOKUP(C67,coefficient2!$A$10:$B$13,2,FALSE)) -> 0 | J67: =IF(D67=1,"0",VLOOKUP(D67,coefficient2!$A$16:$B$19,2,FALSE)) -> 0.0711974 | K67: =IF(E67=1,"0",VLOOKUP(E67,coefficient2!$A$22:$B$25,2,FALSE)) -> 0.2068864 | L67: =IF(F67=1,"0",VLOOKUP(F67,coefficient2!$A$28:$B$31,2,FALSE)) -> 0 | M67: 0.7219162
A68: 11342 | B68: 1 | C68: 1 | D68: 3 | E68: 4 | F68: 2 | G68: 11 | H68: =IF(B68=1,"0",VLOOKUP(B68,coefficient2!$A$4:$B$7,2,FALSE)) -> 0 | I68: =IF(C68=1,"0",VLOOKUP(C68,coefficient2!$A$10:$B$13,2,FALSE)) -> 0 | J68: =IF(D68=1,"0",VLOOKUP(D68,coefficient2!$A$16:$B$19,2,FALSE)) -> 0.0711974 | K68: =IF(E68=1,"0",VLOOKUP(E68,coefficient2!$A$22:$B$25,2,FALSE)) -> 0.2068864 | L68: =IF(F68=1,"0",VLOOKUP(F68,coefficient2!$A$28:$B$31,2,FALSE)) -> 0.0580857 | M68: 0.6638305
A69: 11343 | B69: 1 | C69: 1 | D69: 3 | E69: 4 | F69: 3 | G69: 12 | H69: =IF(B69=1,"0",VLOOKUP(B69,coefficient2!$A$4:$B$7,2,FALSE)) -> 0 | I69: =IF(C69=1,"0",VLOOKUP(C69,coefficient2!$A$10:$B$13,2,FALSE)) -> 0 | J69: =IF(D69=1,"0",VLOOKUP(D69,coefficient2!$A$16:$B$19,2,FALSE)) -> 0.0711974 | K69: =IF(E69=1,"0",VLOOKUP(E69,coefficient2!$A$22:$B$25,2,FALSE)) -> 0.2068864 | L69: =IF(F69=1,"0",VLOOKUP(F69,coefficient2!$A$28:$B$31,2,FALSE)) -> 0.0957539 | M69: 0.6261623
A70: 11344 | B70: 1 | C70: 1 | D70: 3 | E70: 4 | F70: 4 | G70: 13 | H70: =IF(B70=1,"0",VLOOKUP(B70,coefficient2!$A$4:$B$7,2,FALSE)) -> 0 | I70: =IF(C70=1,"0",VLOOKUP(C70,coefficient2!$A$10:$B$13,2,FALSE)) -> 0 | J70: =IF(D70=1,"0",VLOOKUP(D70,coefficient2!$A$16:$B$19,2,FALSE)) -> 0.0711974 | K70: =IF(E70=1,"0",VLOOKUP(E70,coefficient2!$A$22:$B$25,2,FALSE)) -> 0.2068864 | L70: =IF(F70=1,"0",VLOOKUP(F70,coefficient2!$A$28:$B$31,2,FALSE)) -> 0.2327036 | M70: 0.4892126
A71: 11345 | B71: 1 | C71: 1 | D71: 3 | E71: 4 | F71: 5 | G71: 14 | H71: =IF(B71=1,"0",VLOOKUP(B71,coefficient2!$A$4:$B$7,2,FALSE)) -> 0 | I71: =IF(C71=1,"0",VLOOKUP(C71,coefficient2!$A$10:$B$13,2,FALSE)) -> 0 | J71: =IF(D71=1,"0",VLOOKUP(D71,coefficient2!$A$16:$B$19,2,FALSE)) -> 0.0711974 | K71: =IF(E71=1,"0",VLOOKUP(E71,coefficient2!$A$22:$B$25,2,FALSE)) -> 0.2068864 | L71: =IF(F71=1,"0",VLOOKUP(F71,coefficient2!$A$28:$B$31,2,FALSE)) -> 0.2953493 | M71: 0.4265669
A72: 11351 | B72: 1 | C72: 1 | D72: 3 | E72: 5 | F72: 1 | G72: 11 | H72: =IF(B72=1,"0",VLOOKUP(B72,coefficient2!$A$4:$B$7,2,FALSE)) -> 0 | I72: =IF(C72=1,"0",VLOOKUP(C72,coefficient2!$A$10:$B$13,2,FALSE)) -> 0 | J72: =IF(D72=1,"0",VLOOKUP(D72,coefficient2!$A$16:$B$19,2,FALSE)) -> 0.0711974 | K72: =IF(E72=1,"0",VLOOKUP(E72,coefficient2!$A$22:$B$25,2,FALSE)) -> 0.2564331 | L72: =IF(F72=1,"0",VLOOKUP(F72,coefficient2!$A$28:$B$31,2,FALSE)) -> 0 | M72: 0.6723695
A73: 11352 | B73: 1 | C73: 1 | D73: 3 | E73: 5 | F73: 2 | G73: 12 | H73: =IF(B73=1,"0",VLOOKUP(B73,coefficient2!$A$4:$B$7,2,FALSE)) -> 0 | I73: =IF(C73=1,"0",VLOOKUP(C73,coefficient2!$A$10:$B$13,2,FALSE)) -> 0 | J73: =IF(D73=1,"0",VLOOKUP(D73,coefficient2!$A$16:$B$19,2,FALSE)) -> 0.0711974 | K73: =IF(E73=1,"0",VLOOKUP(E73,coefficient2!$A$22:$B$25,2,FALSE)) -> 0.2564331 | L73: =IF(F73=1,"0",VLOOKUP(F73,coefficient2!$A$28:$B$31,2,FALSE)) -> 0.0580857 | M73: 0.6142838
A74: 11353 | B74: 1 | C74: 1 | D74: 3 | E74: 5 | F74: 3 | G74: 13 | H74: =IF(B74=1,"0",VLOOKUP(B74,coefficient2!$A$4:$B$7,2,FALSE)) -> 0 | I74: =IF(C74=1,"0",VLOOKUP(C74,coefficient2!$A$10:$B$13,2,FALSE)) -> 0 | J74: =IF(D74=1,"0",VLOOKUP(D74,coefficient2!$A$16:$B$19,2,FALSE)) -> 0.0711974 | K74: =IF(E74=1,"0",VLOOKUP(E74,coefficient2!$A$22:$B$25,2,FALSE)) -> 0.2564331 | L74: =IF(F74=1,"0",VLOOKUP(F74,coefficient2!$A$28:$B$31,2,FALSE)) -> 0.0957539 | M74: 0.5766156
A75: 11354 | B75: 1 | C75: 1 | D75: 3 | E75: 5 | F75: 4 | G75: 14 | H75: =IF(B75=1,"0",VLOOKUP(B75,coefficient2!$A$4:$B$7,2,FALSE)) -> 0 | I75: =IF(C75=1,"0",VLOOKUP(C75,coefficient2!$A$10:$B$13,2,FALSE)) -> 0 | J75: =IF(D75=1,"0",VLOOKUP(D75,coefficient2!$A$16:$B$19,2,FALSE)) -> 0.0711974 | K75: =IF(E75=1,"0",VLOOKUP(E75,coefficient2!$A$22:$B$25,2,FALSE)) -> 0.2564331 | L75: =IF(F75=1,"0",VLOOKUP(F75,coefficient2!$A$28:$B$31,2,FALSE)) -> 0.2327036 | M75: 0.4396659
A76: 11355 | B76: 1 | C76: 1 | D76: 3 | E76: 5 | F76: 5 | G76: 15 | H76: =IF(B76=1,"0",VLOOKUP(B76,coefficient2!$A$4:$B$7,2,FALSE)) -> 0 | I76: =IF(C76=1,"0",VLOOKUP(C76,coefficient2!$A$10:$B$13,2,FALSE)) -> 0 | J76: =IF(D76=1,"0",VLOOKUP(D76,coefficient2!$A$16:$B$19,2,FALSE)) -> 0.0711974 | K76: =IF(E76=1,"0",VLOOKUP(E76,coefficient2!$A$22:$B$25,2,FALSE)) -> 0.2564331 | L76: =IF(F76=1,"0",VLOOKUP(F76,coefficient2!$A$28:$B$31,2,FALSE)) -> 0.2953493 | M76: 0.3770202
A77: 11411 | B77: 1 | C77: 1 | D77: 4 | E77: 1 | F77: 1 | G77: 8 | H77: =IF(B77=1,"0",VLOOKUP(B77,coefficient2!$A$4:$B$7,2,FALSE)) -> 0 | I77: =IF(C77=1,"0",VLOOKUP(C77,coefficient2!$A$10:$B$13,2,FALSE)) -> 0 | J77: =IF(D77=1,"0",VLOOKUP(D77,coefficient2!$A$16:$B$19,2,FALSE)) -> 0.1534855 | K77: =IF(E77=1,"0",VLOOKUP(E77,coefficient2!$A$22:$B$25,2,FALSE)) -> 0 | L77: =IF(F77=1,"0",VLOOKUP(F77,coefficient2!$A$28:$B$31,2,FALSE)) -> 0 | M77: 0.8465145
A78: 11412 | B78: 1 | C78: 1 | D78: 4 | E78: 1 | F78: 2 | G78: 9 | H78: =IF(B78=1,"0",VLOOKUP(B78,coefficient2!$A$4:$B$7,2,FALSE)) -> 0 | I78: =IF(C78=1,"0",VLOOKUP(C78,coefficient2!$A$10:$B$13,2,FALSE)) -> 0 | J78: =IF(D78=1,"0",VLOOKUP(D78,coefficient2!$A$16:$B$19,2,FALSE)) -> 0.1534855 | K78: =IF(E78=1,"0",VLOOKUP(E78,coefficient2!$A$22:$B$25,2,FALSE)) -> 0 | L78: =IF(F78=1,"0",VLOOKUP(F78,coefficient2!$A$28:$B$31,2,FALSE)) -> 0.0580857 | M78: 0.7884288
A79: 11413 | B79: 1 | C79: 1 | D79: 4 | E79: 1 | F79: 3 | G79: 10 | H79: =IF(B79=1,"0",VLOOKUP(B79,coefficient2!$A$4:$B$7,2,FALSE)) -> 0 | I79: =IF(C79=1,"0",VLOOKUP(C79,coefficient2!$A$10:$B$13,2,FALSE)) -> 0 | J79: =IF(D79=1,"0",VLOOKUP(D79,coefficient2!$A$16:$B$19,2,FALSE)) -> 0.1534855 | K79: =IF(E79=1,"0",VLOOKUP(E79,coefficient2!$A$22:$B$25,2,FALSE)) -> 0 | L79: =IF(F79=1,"0",VLOOKUP(F79,coefficient2!$A$28:$B$31,2,FALSE)) -> 0.0957539 | M79: 0.7507606
A80: 11414 | B80: 1 | C80: 1 | D80: 4 | E80: 1 | F80: 4 | G80: 11 | H80: =IF(B80=1,"0",VLOOKUP(B80,coefficient2!$A$4:$B$7,2,FALSE)) -> 0 | I80: =IF(C80=1,"0",VLOOKUP(C80,coefficient2!$A$10:$B$13,2,FALSE)) -> 0 | J80: =IF(D80=1,"0",VLOOKUP(D80,coefficient2!$A$16:$B$19,2,FALSE)) -> 0.1534855 | K80: =IF(E80=1,"0",VLOOKUP(E80,coefficient2!$A$22:$B$25,2,FALSE)) -> 0 | L80: =IF(F80=1,"0",VLOOKUP(F80,coefficient2!$A$28:$B$31,2,FALSE)) -> 0.2327036 | M80: 0.6138109
A81: 11415 | B81: 1 | C81: 1 | D81: 4 | E81: 1 | F81: 5 | G81: 12 | H81: =IF(B81=1,"0",VLOOKUP(B81,coefficient2!$A$4:$B$7,2,FALSE)) -> 0 | I81: =IF(C81=1,"0",VLOOKUP(C81,coefficient2!$A$10:$B$13,2,FALSE)) -> 0 | J81: =IF(D81=1,"0",VLOOKUP(D81,coefficient2!$A$16:$B$19,2,FALSE)) -> 0.1534855 | K81: =IF(E81=1,"0",VLOOKUP(E81,coefficient2!$A$22:$B$25,2,FALSE)) -> 0 | L81: =IF(F81=1,"0",VLOOKUP(F81,coefficient2!$A$28:$B$31,2,FALSE)) -> 0.2953493 | M81: 0.5511652
A82: 11421 | B82: 1 | C82: 1 | D82: 4 | E82: 2 | F82: 1 | G82: 9 | H82: =IF(B82=1,"0",VLOOKUP(B82,coefficient2!$A$4:$B$7,2,FALSE)) -> 0 | I82: =IF(C82=1,"0",VLOOKUP(C82,coefficient2!$A$10:$B$13,2,FALSE)) -> 0 | J82: =IF(D82=1,"0",VLOOKUP(D82,coefficient2!$A$16:$B$19,2,FALSE)) -> 0.1534855 | K82: =IF(E82=1,"0",VLOOKUP(E82,coefficient2!$A$22:$B$25,2,FALSE)) -> 0.0563998 | L82: =IF(F82=1,"0",VLOOKUP(F82,coefficient2!$A$28:$B$31,2,FALSE)) -> 0 | M82: 0.7901147
A83: 11422 | B83: 1 | C83: 1 | D83: 4 | E83: 2 | F83: 2 | G83: 10 | H83: =IF(B83=1,"0",VLOOKUP(B83,coefficient2!$A$4:$B$7,2,FALSE)) -> 0 | I83: =IF(C83=1,"0",VLOOKUP(C83,coefficient2!$A$10:$B$13,2,FALSE)) -> 0 | J83: =IF(D83=1,"0",VLOOKUP(D83,coefficient2!$A$16:$B$19,2,FALSE)) -> 0.1534855 | K83: =IF(E83=1,"0",VLOOKUP(E83,coefficient2!$A$22:$B$25,2,FALSE)) -> 0.0563998 | L83: =IF(F83=1,"0",VLOOKUP(F83,coefficient2!$A$28:$B$31,2,FALSE)) -> 0.0580857 | M83: 0.732029
A84: 11423 | B84: 1 | C84: 1 | D84: 4 | E84: 2 | F84: 3 | G84: 11 | H84: =IF(B84=1,"0",VLOOKUP(B84,coefficient2!$A$4:$B$7,2,FALSE)) -> 0 | I84: =IF(C84=1,"0",VLOOKUP(C84,coefficient2!$A$10:$B$13,2,FALSE)) -> 0 | J84: =IF(D84=1,"0",VLOOKUP(D84,coefficient2!$A$16:$B$19,2,FALSE)) -> 0.1534855 | K84: =IF(E84=1,"0",VLOOKUP(E84,coefficient2!$A$22:$B$25,2,FALSE)) -> 0.0563998 | L84: =IF(F84=1,"0",VLOOKUP(F84,coefficient2!$A$28:$B$31,2,FALSE)) -> 0.0957539 | M84: 0.6943608
A85: 11424 | B85: 1 | C85: 1 | D85: 4 | E85: 2 | F85: 4 | G85: 12 | H85: =IF(B85=1,"0",VLOOKUP(B85,coefficient2!$A$4:$B$7,2,FALSE)) -> 0 | I85: =IF(C85=1,"0",VLOOKUP(C85,coefficient2!$A$10:$B$13,2,FALSE)) -> 0 | J85: =IF(D85=1,"0",VLOOKUP(D85,coefficient2!$A$16:$B$19,2,FALSE)) -> 0.1534855 | K85: =IF(E85=1,"0",VLOOKUP(E85,coefficient2!$A$22:$B$25,2,FALSE)) -> 0.0563998 | L85: =IF(F85=1,"0",VLOOKUP(F85,coefficient2!$A$28:$B$31,2,FALSE)) -> 0.2327036 | M85: 0.5574111
A86: 11425 | B86: 1 | C86: 1 | D86: 4 | E86: 2 | F86: 5 | G86: 13 | H86: =IF(B86=1,"0",VLOOKUP(B86,coefficient2!$A$4:$B$7,2,FALSE)) -> 0 | I86: =IF(C86=1,"0",VLOOKUP(C86,coefficient2!$A$10:$B$13,2,FALSE)) -> 0 | J86: =IF(D86=1,"0",VLOOKUP(D86,coefficient2!$A$16:$B$19,2,FALSE)) -> 0.1534855 | K86: =IF(E86=1,"0",VLOOKUP(E86,coefficient2!$A$22:$B$25,2,FALSE)) -> 0.0563998 | L86: =IF(F86=1,"0",VLOOKUP(F86,coefficient2!$A$28:$B$31,2,FALSE)) -> 0.2953493 | M86: 0.4947654
A87: 11431 | B87: 1 | C87: 1 | D87: 4 | E87: 3 | F87: 1 | G87: 10 | H87: =IF(B87=1,"0",VLOOKUP(B87,coefficient2!$A$4:$B$7,2,FALSE)) -> 0 | I87: =IF(C87=1,"0",VLOOKUP(C87,coefficient2!$A$10:$B$13,2,FALSE)) -> 0 | J87: =IF(D87=1,"0",VLOOKUP(D87,coefficient2!$A$16:$B$19,2,FALSE)) -> 0.1534855 | K87: =IF(E87=1,"0",VLOOKUP(E87,coefficient2!$A$22:$B$25,2,FALSE)) -> 0.0664922 | L87: =IF(F87=1,"0",VLOOKUP(F87,coefficient2!$A$28:$B$31,2,FALSE)) -> 0 | M87: 0.7800223
A88: 11432 | B88: 1 | C88: 1 | D88: 4 | E88: 3 | F88: 2 | G88: 11 | H88: =IF(B88=1,"0",VLOOKUP(B88,coefficient2!$A$4:$B$7,2,FALSE)) -> 0 | I88: =IF(C88=1,"0",VLOOKUP(C88,coefficient2!$A$10:$B$13,2,FALSE)) -> 0 | J88: =IF(D88=1,"0",VLOOKUP(D88,coefficient2!$A$16:$B$19,2,FALSE)) -> 0.1534855 | K88: =IF(E88=1,"0",VLOOKUP(E88,coefficient2!$A$22:$B$25,2,FALSE)) -> 0.0664922 | L88: =IF(F88=1,"0",VLOOKUP(F88,coefficient2!$A$28:$B$31,2,FALSE)) -> 0.0580857 | M88: 0.7219366
A89: 11433 | B89: 1 | C89: 1 | D89: 4 | E89: 3 | F89: 3 | G89: 12 | H89: =IF(B89=1,"0",VLOOKUP(B89,coefficient2!$A$4:$B$7,2,FALSE)) -> 0 | I89: =IF(C89=1,"0",VLOOKUP(C89,coefficient2!$A$10:$B$13,2,FALSE)) -> 0 | J89: =IF(D89=1,"0",VLOOKUP(D89,coefficient2!$A$16:$B$19,2,FALSE)) -> 0.1534855 | K89: =IF(E89=1,"0",VLOOKUP(E89,coefficient2!$A$22:$B$25,2,FALSE)) -> 0.0664922 | L89: =IF(F89=1,"0",VLOOKUP(F89,coefficient2!$A$28:$B$31,2,FALSE)) -> 0.0957539 | M89: 0.6842684
A90: 11434 | B90: 1 | C90: 1 | D90: 4 | E90: 3 | F90: 4 | G90: 13 | H90: =IF(B90=1,"0",VLOOKUP(B90,coefficient2!$A$4:$B$7,2,FALSE)) -> 0 | I90: =IF(C90=1,"0",VLOOKUP(C90,coefficient2!$A$10:$B$13,2,FALSE)) -> 0 | J90: =IF(D90=1,"0",VLOOKUP(D90,coefficient2!$A$16:$B$19,2,FALSE)) -> 0.1534855 | K90: =IF(E90=1,"0",VLOOKUP(E90,coefficient2!$A$22:$B$25,2,FALSE)) -> 0.0664922 | L90: =IF(F90=1,"0",VLOOKUP(F90,coefficient2!$A$28:$B$31,2,FALSE)) -> 0.2327036 | M90: 0.5473187
A91: 11435 | B91: 1 | C91: 1 | D91: 4 | E91: 3 | F91: 5 | G91: 14 | H91: =IF(B91=1,"0",VLOOKUP(B91,coefficient2!$A$4:$B$7,2,FALSE)) -> 0 | I91: =IF(C91=1,"0",VLOOKUP(C91,coefficient2!$A$10:$B$13,2,FALSE)) -> 0 | J91: =IF(D91=1,"0",VLOOKUP(D91,coefficient2!$A$16:$B$19,2,FALSE)) -> 0.1534855 | K91: =IF(E91=1,"0",VLOOKUP(E91,coefficient2!$A$22:$B$25,2,FALSE)) -> 0.0664922 | L91: =IF(F91=1,"0",VLOOKUP(F91,coefficient2!$A$28:$B$31,2,FALSE)) -> 0.2953493 | M91: 0.484673
A92: 11441 | B92: 1 | C92: 1 | D92: 4 | E92: 4 | F92: 1 | G92: 11 | H92: =IF(B92=1,"0",VLOOKUP(B92,coefficient2!$A$4:$B$7,2,FALSE)) -> 0 | I92: =IF(C92=1,"0",VLOOKUP(C92,coefficient2!$A$10:$B$13,2,FALSE)) -> 0 | J92: =IF(D92=1,"0",VLOOKUP(D92,coefficient2!$A$16:$B$19,2,FALSE)) -> 0.1534855 | K92: =IF(E92=1,"0",VLOOKUP(E92,coefficient2!$A$22:$B$25,2,FALSE)) -> 0.2068864 | L92: =IF(F92=1,"0",VLOOKUP(F92,coefficient2!$A$28:$B$31,2,FALSE)) -> 0 | M92: 0.6396281
A93: 11442 | B93: 1 | C93: 1 | D93: 4 | E93: 4 | F93: 2 | G93: 12 | H93: =IF(B93=1,"0",VLOOKUP(B93,coefficient2!$A$4:$B$7,2,FALSE)) -> 0 | I93: =IF(C93=1,"0",VLOOKUP(C93,coefficient2!$A$10:$B$13,2,FALSE)) -> 0 | J93: =IF(D93=1,"0",VLOOKUP(D93,coefficient2!$A$16:$B$19,2,FALSE)) -> 0.1534855 | K93: =IF(E93=1,"0",VLOOKUP(E93,coefficient2!$A$22:$B$25,2,FALSE)) -> 0.2068864 | L93: =IF(F93=1,"0",VLOOKUP(F93,coefficient2!$A$28:$B$31,2,FALSE)) -> 0.0580857 | M93: 0.5815424
A94: 11443 | B94: 1 | C94: 1 | D94: 4 | E94: 4 | F94: 3 | G94: 13 | H94: =IF(B94=1,"0",VLOOKUP(B94,coefficient2!$A$4:$B$7,2,FALSE)) -> 0 | I94: =IF(C94=1,"0",VLOOKUP(C94,coefficient2!$A$10:$B$13,2,FALSE)) -> 0 | J94: =IF(D94=1,"0",VLOOKUP(D94,coefficient2!$A$16:$B$19,2,FALSE)) -> 0.1534855 | K94: =IF(E94=1,"0",VLOOKUP(E94,coefficient2!$A$22:$B$25,2,FALSE)) -> 0.2068864 | L94: =IF(F94=1,"0",VLOOKUP(F94,coefficient2!$A$28:$B$31,2,FALSE)) -> 0.0957539 | M94: 0.5438742
A95: 11444 | B95: 1 | C95: 1 | D95: 4 | E95: 4 | F95: 4 | G95: 14 | H95: =IF(B95=1,"0",VLOOKUP(B95,coefficient2!$A$4:$B$7,2,FALSE)) -> 0 | I95: =IF(C95=1,"0",VLOOKUP(C95,coefficient2!$A$10:$B$13,2,FALSE)) -> 0 | J95: =IF(D95=1,"0",VLOOKUP(D95,coefficient2!$A$16:$B$19,2,FALSE)) -> 0.1534855 | K95: =IF(E95=1,"0",VLOOKUP(E95,coefficient2!$A$22:$B$25,2,FALSE)) -> 0.2068864 | L95: =IF(F95=1,"0",VLOOKUP(F95,coefficient2!$A$28:$B$31,2,FALSE)) -> 0.2327036 | M95: 0.4069245
A96: 11445 | B96: 1 | C96: 1 | D96: 4 | E96: 4 | F96: 5 | G96: 15 | H96: =IF(B96=1,"0",VLOOKUP(B96,coefficient2!$A$4:$B$7,2,FALSE)) -> 0 | I96: =IF(C96=1,"0",VLOOKUP(C96,coefficient2!$A$10:$B$13,2,FALSE)) -> 0 | J96: =IF(D96=1,"0",VLOOKUP(D96,coefficient2!$A$16:$B$19,2,FALSE)) -> 0.1534855 | K96: =IF(E96=1,"0",VLOOKUP(E96,coefficient2!$A$22:$B$25,2,FALSE)) -> 0.2068864 | L96: =IF(F96=1,"0",VLOOKUP(F96,coefficient2!$A$28:$B$31,2,FALSE)) -> 0.2953493 | M96: 0.3442788
A97: 11451 | B97: 1 | C97: 1 | D97: 4 | E97: 5 | F97: 1 | G97: 12 | H97: =IF(B97=1,"0",VLOOKUP(B97,coefficient2!$A$4:$B$7,2,FALSE)) -> 0 | I97: =IF(C97=1,"0",VLOOKUP(C97,coefficient2!$A$10:$B$13,2,FALSE)) -> 0 | J97: =IF(D97=1,"0",VLOOKUP(D97,coefficient2!$A$16:$B$19,2,FALSE)) -> 0.1534855 | K97: =IF(E97=1,"0",VLOOKUP(E97,coefficient2!$A$22:$B$25,2,FALSE)) -> 0.2564331 | L97: =IF(F97=1,"0",VLOOKUP(F97,coefficient2!$A$28:$B$31,2,FALSE)) -> 0 | M97: 0.5900814
A98: 11452 | B98: 1 | C98: 1 | D98: 4 | E98: 5 | F98: 2 | G98: 13 | H98: =IF(B98=1,"0",VLOOKUP(B98,coefficient2!$A$4:$B$7,2,FALSE)) -> 0 | I98: =IF(C98=1,"0",VLOOKUP(C98,coefficient2!$A$10:$B$13,2,FALSE)) -> 0 | J98: =IF(D98=1,"0",VLOOKUP(D98,coefficient2!$A$16:$B$19,2,FALSE)) -> 0.1534855 | K98: =IF(E98=1,"0",VLOOKUP(E98,coefficient2!$A$22:$B$25,2,FALSE)) -> 0.2564331 | L98: =IF(F98=1,"0",VLOOKUP(F98,coefficient2!$A$28:$B$31,2,FALSE)) -> 0.0580857 | M98: 0.5319957
A99: 11453 | B99: 1 | C99: 1 | D99: 4 | E99: 5 | F99: 3 | G99: 14 | H99: =IF(B99=1,"0",VLOOKUP(B99,coefficient2!$A$4:$B$7,2,FALSE)) -> 0 | I99: =IF(C99=1,"0",VLOOKUP(C99,coefficient2!$A$10:$B$13,2,FALSE)) -> 0 | J99: =IF(D99=1,"0",VLOOKUP(D99,coefficient2!$A$16:$B$19,2,FALSE)) -> 0.1534855 | K99: =IF(E99=1,"0",VLOOKUP(E99,coefficient2!$A$22:$B$25,2,FALSE)) -> 0.2564331 | L99: =IF(F99=1,"0",VLOOKUP(F99,coefficient2!$A$28:$B$31,2,FALSE)) -> 0.0957539 | M99: 0.4943275
A100: 11454 | B100: 1 | C100: 1 | D100: 4 | E100: 5 | F100: 4 | G100: 15 | H100: =IF(B100=1,"0",VLOOKUP(B100,coefficient2!$A$4:$B$7,2,FALSE)) -> 0 | I100: =IF(C100=1,"0",VLOOKUP(C100,coefficient2!$A$10:$B$13,2,FALSE)) -> 0 | J100: =IF(D100=1,"0",VLOOKUP(D100,coefficient2!$A$16:$B$19,2,FALSE)) -> 0.1534855 | K100: =IF(E100=1,"0",VLOOKUP(E100,coefficient2!$A$22:$B$25,2,FALSE)) -> 0.2564331 | L100: =IF(F100=1,"0",VLOOKUP(F100,coefficient2!$A$28:$B$31,2,FALSE)) -> 0.2327036 | M100: 0.3573778
A101: 11455 | B101: 1 | C101: 1 | D101: 4 | E101: 5 | F101: 5 | G101: 16 | H101: =IF(B101=1,"0",VLOOKUP(B101,coefficient2!$A$4:$B$7,2,FALSE)) -> 0 | I101: =IF(C101=1,"0",VLOOKUP(C101,coefficient2!$A$10:$B$13,2,FALSE)) -> 0 | J101: =IF(D101=1,"0",VLOOKUP(D101,coefficient2!$A$16:$B$19,2,FALSE)) -> 0.1534855 | K101: =IF(E101=1,"0",VLOOKUP(E101,coefficient2!$A$22:$B$25,2,FALSE)) -> 0.2564331 | L101: =IF(F101=1,"0",VLOOKUP(F101,coefficient2!$A$28:$B$31,2,FALSE)) -> 0.2953493 | M101: 0.2947321
A102: 11511 | B102: 1 | C102: 1 | D102: 5 | E102: 1 | F102: 1 | G102: 9 | H102: =IF(B102=1,"0",VLOOKUP(B102,coefficient2!$A$4:$B$7,2,FALSE)) -> 0 | I102: =IF(C102=1,"0",VLOOKUP(C102,coefficient2!$A$10:$B$13,2,FALSE)) -> 0 | J102: =IF(D102=1,"0",VLOOKUP(D102,coefficient2!$A$16:$B$19,2,FALSE)) -> 0.248331 | K102: =IF(E102=1,"0",VLOOKUP(E102,coefficient2!$A$22:$B$25,2,FALSE)) -> 0 | L102: =IF(F102=1,"0",VLOOKUP(F102,coefficient2!$A$28:$B$31,2,FALSE)) -> 0 | M102: 0.751669
A103: 11512 | B103: 1 | C103: 1 | D103: 5 | E103: 1 | F103: 2 | G103: 10 | H103: =IF(B103=1,"0",VLOOKUP(B103,coefficient2!$A$4:$B$7,2,FALSE)) -> 0 | I103: =IF(C103=1,"0",VLOOKUP(C103,coefficient2!$A$10:$B$13,2,FALSE)) -> 0 | J103: =IF(D103=1,"0",VLOOKUP(D103,coefficient2!$A$16:$B$19,2,FALSE)) -> 0.248331 | K103: =IF(E103=1,"0",VLOOKUP(E103,coefficient2!$A$22:$B$25,2,FALSE)) -> 0 | L103: =IF(F103=1,"0",VLOOKUP(F103,coefficient2!$A$28:$B$31,2,FALSE)) -> 0.0580857 | M103: 0.6935833
A104: 11513 | B104: 1 | C104: 1 | D104: 5 | E104: 1 | F104: 3 | G104: 11 | H104: =IF(B104=1,"0",VLOOKUP(B104,coefficient2!$A$4:$B$7,2,FALSE)) -> 0 | I104: =IF(C104=1,"0",VLOOKUP(C104,coefficient2!$A$10:$B$13,2,FALSE)) -> 0 | J104: =IF(D104=1,"0",VLOOKUP(D104,coefficient2!$A$16:$B$19,2,FALSE)) -> 0.248331 | K104: =IF(E104=1,"0",VLOOKUP(E104,coefficient2!$A$22:$B$25,2,FALSE)) -> 0 | L104: =IF(F104=1,"0",VLOOKUP(F104,coefficient2!$A$28:$B$31,2,FALSE)) -> 0.0957539 | M104: 0.6559151
A105: 11514 | B105: 1 | C105: 1 | D105: 5 | E105: 1 | F105: 4 | G105: 12 | H105: =IF(B105=1,"0",VLOOKUP(B105,coefficient2!$A$4:$B$7,2,FALSE)) -> 0 | I105: =IF(C105=1,"0",VLOOKUP(C105,coefficient2!$A$10:$B$13,2,FALSE)) -> 0 | J105: =IF(D105=1,"0",VLOOKUP(D105,coefficient2!$A$16:$B$19,2,FALSE)) -> 0.248331 | K105: =IF(E105=1,"0",VLOOKUP(E105,coefficient2!$A$22:$B$25,2,FALSE)) -> 0 | L105: =IF(F105=1,"0",VLOOKUP(F105,coefficient2!$A$28:$B$31,2,FALSE)) -> 0.2327036 | M105: 0.5189654
A106: 11515 | B106: 1 | C106: 1 | D106: 5 | E106: 1 | F106: 5 | G106: 13 | H106: =IF(B106=1,"0",VLOOKUP(B106,coefficient2!$A$4:$B$7,2,FALSE)) -> 0 | I106: =IF(C106=1,"0",VLOOKUP(C106,coefficient2!$A$10:$B$13,2,FALSE)) -> 0 | J106: =IF(D106=1,"0",VLOOKUP(D106,coefficient2!$A$16:$B$19,2,FALSE)) -> 0.248331 | K106: =IF(E106=1,"0",VLOOKUP(E106,coefficient2!$A$22:$B$25,2,FALSE)) -> 0 | L106: =IF(F106=1,"0",VLOOKUP(F106,coefficient2!$A$28:$B$31,2,FALSE)) -> 0.2953493 | M106: 0.4563197
A107: 11521 | B107: 1 | C107: 1 | D107: 5 | E107: 2 | F107: 1 | G107: 10 | H107: =IF(B107=1,"0",VLOOKUP(B107,coefficient2!$A$4:$B$7,2,FALSE)) -> 0 | I107: =IF(C107=1,"0",VLOOKUP(C107,coefficient2!$A$10:$B$13,2,FALSE)) -> 0 | J107: =IF(D107=1,"0",VLOOKUP(D107,coefficient2!$A$16:$B$19,2,FALSE)) -> 0.248331 | K107: =IF(E107=1,"0",VLOOKUP(E107,coefficient2!$A$22:$B$25,2,FALSE)) -> 0.0563998 | L107: =IF(F107=1,"0",VLOOKUP(F107,coefficient2!$A$28:$B$31,2,FALSE)) -> 0 | M107: 0.6952692
A108: 11522 | B108: 1 | C108: 1 | D108: 5 | E108: 2 | F108: 2 | G108: 11 | H108: =IF(B108=1,"0",VLOOKUP(B108,coefficient2!$A$4:$B$7,2,FALSE)) -> 0 | I108: =IF(C108=1,"0",VLOOKUP(C108,coefficient2!$A$10:$B$13,2,FALSE)) -> 0 | J108: =IF(D108=1,"0",VLOOKUP(D108,coefficient2!$A$16:$B$19,2,FALSE)) -> 0.248331 | K108: =IF(E108=1,"0",VLOOKUP(E108,coefficient2!$A$22:$B$25,2,FALSE)) -> 0.0563998 | L108: =IF(F108=1,"0",VLOOKUP(F108,coefficient2!$A$28:$B$31,2,FALSE)) -> 0.0580857 | M108: 0.6371835
A109: 11523 | B109: 1 | C109: 1 | D109: 5 | E109: 2 | F109: 3 | G109: 12 | H109: =IF(B109=1,"0",VLOOKUP(B109,coefficient2!$A$4:$B$7,2,FALSE)) -> 0 | I109: =IF(C109=1,"0",VLOOKUP(C109,coefficient2!$A$10:$B$13,2,FALSE)) -> 0 | J109: =IF(D109=1,"0",VLOOKUP(D109,coefficient2!$A$16:$B$19,2,FALSE)) -> 0.248331 | K109: =IF(E109=1,"0",VLOOKUP(E109,coefficient2!$A$22:$B$25,2,FALSE)) -> 0.0563998 | L109: =IF(F109=1,"0",VLOOKUP(F109,coefficient2!$A$28:$B$31,2,FALSE)) -> 0.0957539 | M109: 0.5995153
A110: 11524 | B110: 1 | C110: 1 | D110: 5 | E110: 2 | F110: 4 | G110: 13 | H110: =IF(B110=1,"0",VLOOKUP(B110,coefficient2!$A$4:$B$7,2,FALSE)) -> 0 | I110: =IF(C110=1,"0",VLOOKUP(C110,coefficient2!$A$10:$B$13,2,FALSE)) -> 0 | J110: =IF(D110=1,"0",VLOOKUP(D110,coefficient2!$A$16:$B$19,2,FALSE)) -> 0.248331 | K110: =IF(E110=1,"0",VLOOKUP(E110,coefficient2!$A$22:$B$25,2,FALSE)) -> 0.0563998 | L110: =IF(F110=1,"0",VLOOKUP(F110,coefficient2!$A$28:$B$31,2,FALSE)) -> 0.2327036 | M110: 0.4625656
A111: 11525 | B111: 1 | C111: 1 | D111: 5 | E111: 2 | F111: 5 | G111: 14 | H111: =IF(B111=1,"0",VLOOKUP(B111,coefficient2!$A$4:$B$7,2,FALSE)) -> 0 | I111: =IF(C111=1,"0",VLOOKUP(C111,coefficient2!$A$10:$B$13,2,FALSE)) -> 0 | J111: =IF(D111=1,"0",VLOOKUP(D111,coefficient2!$A$16:$B$19,2,FALSE)) -> 0.248331 | K111: =IF(E111=1,"0",VLOOKUP(E111,coefficient2!$A$22:$B$25,2,FALSE)) -> 0.0563998 | L111: =IF(F111=1,"0",VLOOKUP(F111,coefficient2!$A$28:$B$31,2,FALSE)) -> 0.2953493 | M111: 0.3999199
A112: 11531 | B112: 1 | C112: 1 | D112: 5 | E112: 3 | F112: 1 | G112: 11 | H112: =IF(B112=1,"0",VLOOKUP(B112,coefficient2!$A$4:$B$7,2,FALSE)) -> 0 | I112: =IF(C112=1,"0",VLOOKUP(C112,coefficient2!$A$10:$B$13,2,FALSE)) -> 0 | J112: =IF(D112=1,"0",VLOOKUP(D112,coefficient2!$A$16:$B$19,2,FALSE)) -> 0.248331 | K112: =IF(E112=1,"0",VLOOKUP(E112,coefficient2!$A$22:$B$25,2,FALSE)) -> 0.0664922 | L112: =IF(F112=1,"0",VLOOKUP(F112,coefficient2!$A$28:$B$31,2,FALSE)) -> 0 | M112: 0.6851768
A113: 11532 | B113: 1 | C113: 1 | D113: 5 | E113: 3 | F113: 2 | G113: 12 | H113: =IF(B113=1,"0",VLOOKUP(B113,coefficient2!$A$4:$B$7,2,FALSE)) -> 0 | I113: =IF(C113=1,"0",VLOOKUP(C113,coefficient2!$A$10:$B$13,2,FALSE)) -> 0 | J113: =IF(D113=1,"0",VLOOKUP(D113,coefficient2!$A$16:$B$19,2,FALSE)) -> 0.248331 | K113: =IF(E113=1,"0",VLOOKUP(E113,coefficient2!$A$22:$B$25,2,FALSE)) -> 0.0664922 | L113: =IF(F113=1,"0",VLOOKUP(F113,coefficient2!$A$28:$B$31,2,FALSE)) -> 0.0580857 | M113: 0.6270911
A114: 11533 | B114: 1 | C114: 1 | D114: 5 | E114: 3 | F114: 3 | G114: 13 | H114: =IF(B114=1,"0",VLOOKUP(B114,coefficient2!$A$4:$B$7,2,FALSE)) -> 0 | I114: =IF(C114=1,"0",VLOOKUP(C114,coefficient2!$A$10:$B$13,2,FALSE)) -> 0 | J114: =IF(D114=1,"0",VLOOKUP(D114,coefficient2!$A$16:$B$19,2,FALSE)) -> 0.248331 | K114: =IF(E114=1,"0",VLOOKUP(E114,coefficient2!$A$22:$B$25,2,FALSE)) -> 0.0664922 | L114: =IF(F114=1,"0",VLOOKUP(F114,coefficient2!$A$28:$B$31,2,FALSE)) -> 0.0957539 | M114: 0.5894229
A115: 11534 | B115: 1 | C115: 1 | D115: 5 | E115: 3 | F115: 4 | G115: 14 | H115: =IF(B115=1,"0",VLOOKUP(B115,coefficient2!$A$4:$B$7,2,FALSE)) -> 0 | I115: =IF(C115=1,"0",VLOOKUP(C115,coefficient2!$A$10:$B$13,2,FALSE)) -> 0 | J115: =IF(D115=1,"0",VLOOKUP(D115,coefficient2!$A$16:$B$19,2,FALSE)) -> 0.248331 | K115: =IF(E115=1,"0",VLOOKUP(E115,coefficient2!$A$22:$B$25,2,FALSE)) -> 0.0664922 | L115: =IF(F115=1,"0",VLOOKUP(F115,coefficient2!$A$28:$B$31,2,FALSE)) -> 0.2327036 | M115: 0.4524732
A116: 11535 | B116: 1 | C116: 1 | D116: 5 | E116: 3 | F116: 5 | G116: 15 | H116: =IF(B116=1,"0",VLOOKUP(B116,coefficient2!$A$4:$B$7,2,FALSE)) -> 0 | I116: =IF(C116=1,"0",VLOOKUP(C116,coefficient2!$A$10:$B$13,2,FALSE)) -> 0 | J116: =IF(D116=1,"0",VLOOKUP(D116,coefficient2!$A$16:$B$19,2,FALSE)) -> 0.248331 | K116: =IF(E116=1,"0",VLOOKUP(E116,coefficient2!$A$22:$B$25,2,FALSE)) -> 0.0664922 | L116: =IF(F116=1,"0",VLOOKUP(F116,coefficient2!$A$28:$B$31,2,FALSE)) -> 0.2953493 | M116: 0.3898275
A117: 11541 | B117: 1 | C117: 1 | D117: 5 | E117: 4 | F117: 1 | G117: 12 | H117: =IF(B117=1,"0",VLOOKUP(B117,coefficient2!$A$4:$B$7,2,FALSE)) -> 0 | I117: =IF(C117=1,"0",VLOOKUP(C117,coefficient2!$A$10:$B$13,2,FALSE)) -> 0 | J117: =IF(D117=1,"0",VLOOKUP(D117,coefficient2!$A$16:$B$19,2,FALSE)) -> 0.248331 | K117: =IF(E117=1,"0",VLOOKUP(E117,coefficient2!$A$22:$B$25,2,FALSE)) -> 0.2068864 | L117: =IF(F117=1,"0",VLOOKUP(F117,coefficient2!$A$28:$B$31,2,FALSE)) -> 0 | M117: 0.5447826
A118: 11542 | B118: 1 | C118: 1 | D118: 5 | E118: 4 | F118: 2 | G118: 13 | H118: =IF(B118=1,"0",VLOOKUP(B118,coefficient2!$A$4:$B$7,2,FALSE)) -> 0 | I118: =IF(C118=1,"0",VLOOKUP(C118,coefficient2!$A$10:$B$13,2,FALSE)) -> 0 | J118: =IF(D118=1,"0",VLOOKUP(D118,coefficient2!$A$16:$B$19,2,FALSE)) -> 0.248331 | K118: =IF(E118=1,"0",VLOOKUP(E118,coefficient2!$A$22:$B$25,2,FALSE)) -> 0.2068864 | L118: =IF(F118=1,"0",VLOOKUP(F118,coefficient2!$A$28:$B$31,2,FALSE)) -> 0.0580857 | M118: 0.4866969
A119: 11543 | B119: 1 | C119: 1 | D119: 5 | E119: 4 | F119: 3 | G119: 14 | H119: =IF(B119=1,"0",VLOOKUP(B119,coefficient2!$A$4:$B$7,2,FALSE)) -> 0 | I119: =IF(C119=1,"0",VLOOKUP(C119,coefficient2!$A$10:$B$13,2,FALSE)) -> 0 | J119: =IF(D119=1,"0",VLOOKUP(D119,coefficient2!$A$16:$B$19,2,FALSE)) -> 0.248331 | K119: =IF(E119=1,"0",VLOOKUP(E119,coefficient2!$A$22:$B$25,2,FALSE)) -> 0.2068864 | L119: =IF(F119=1,"0",VLOOKUP(F119,coefficient2!$A$28:$B$31,2,FALSE)) -> 0.0957539 | M119: 0.4490287
A120: 11544 | B120: 1 | C120: 1 | D120: 5 | E120: 4 | F120: 4 | G120: 15 | H120: =IF(B120=1,"0",VLOOKUP(B120,coefficient2!$A$4:$B$7,2,FALSE)) -> 0 | I120: =IF(C120=1,"0",VLOOKUP(C120,coefficient2!$A$10:$B$13,2,FALSE)) -> 0 | J120: =IF(D120=1,"0",VLOOKUP(D120,coefficient2!$A$16:$B$19,2,FALSE)) -> 0.248331 | K120: =IF(E120=1,"0",VLOOKUP(E120,coefficient2!$A$22:$B$25,2,FALSE)) -> 0.2068864 | L120: =IF(F120=1,"0",VLOOKUP(F120,coefficient2!$A$28:$B$31,2,FALSE)) -> 0.2327036 | M120: 0.312079
A121: 11545 | B121: 1 | C121: 1 | D121: 5 | E121: 4 | F121: 5 | G121: 16 | H121: =IF(B121=1,"0",VLOOKUP(B121,coefficient2!$A$4:$B$7,2,FALSE)) -> 0 | I121: =IF(C121=1,"0",VLOOKUP(C121,coefficient2!$A$10:$B$13,2,FALSE)) -> 0 | J121: =IF(D121=1,"0",VLOOKUP(D121,coefficient2!$A$16:$B$19,2,FALSE)) -> 0.248331 | K121: =IF(E121=1,"0",VLOOKUP(E121,coefficient2!$A$22:$B$25,2,FALSE)) -> 0.2068864 | L121: =IF(F121=1,"0",VLOOKUP(F121,coefficient2!$A$28:$B$31,2,FALSE)) -> 0.2953493 | M121: 0.2494333
A122: 11551 | B122: 1 | C122: 1 | D122: 5 | E122: 5 | F122: 1 | G122: 13 | H122: =IF(B122=1,"0",VLOOKUP(B122,coefficient2!$A$4:$B$7,2,FALSE)) -> 0 | I122: =IF(C122=1,"0",VLOOKUP(C122,coefficient2!$A$10:$B$13,2,FALSE)) -> 0 | J122: =IF(D122=1,"0",VLOOKUP(D122,coefficient2!$A$16:$B$19,2,FALSE)) -> 0.248331 | K122: =IF(E122=1,"0",VLOOKUP(E122,coefficient2!$A$22:$B$25,2,FALSE)) -> 0.2564331 | L122: =IF(F122=1,"0",VLOOKUP(F122,coefficient2!$A$28:$B$31,2,FALSE)) -> 0 | M122: 0.4952359
A123: 11552 | B123: 1 | C123: 1 | D123: 5 | E123: 5 | F123: 2 | G123: 14 | H123: =IF(B123=1,"0",VLOOKUP(B123,coefficient2!$A$4:$B$7,2,FALSE)) -> 0 | I123: =IF(C123=1,"0",VLOOKUP(C123,coefficient2!$A$10:$B$13,2,FALSE)) -> 0 | J123: =IF(D123=1,"0",VLOOKUP(D123,coefficient2!$A$16:$B$19,2,FALSE)) -> 0.248331 | K123: =IF(E123=1,"0",VLOOKUP(E123,coefficient2!$A$22:$B$25,2,FALSE)) -> 0.2564331 | L123: =IF(F123=1,"0",VLOOKUP(F123,coefficient2!$A$28:$B$31,2,FALSE)) -> 0.0580857 | M123: 0.4371502
A124: 11553 | B124: 1 | C124: 1 | D124: 5 | E124: 5 | F124: 3 | G124: 15 | H124: =IF(B124=1,"0",VLOOKUP(B124,coefficient2!$A$4:$B$7,2,FALSE)) -> 0 | I124: =IF(C124=1,"0",VLOOKUP(C124,coefficient2!$A$10:$B$13,2,FALSE)) -> 0 | J124: =IF(D124=1,"0",VLOOKUP(D124,coefficient2!$A$16:$B$19,2,FALSE)) -> 0.248331 | K124: =IF(E124=1,"0",VLOOKUP(E124,coefficient2!$A$22:$B$25,2,FALSE)) -> 0.2564331 | L124: =IF(F124=1,"0",VLOOKUP(F124,coefficient2!$A$28:$B$31,2,FALSE)) -> 0.0957539 | M124: 0.399482
A125: 11554 | B125: 1 | C125: 1 | D125: 5 | E125: 5 | F125: 4 | G125: 16 | H125: =IF(B125=1,"0",VLOOKUP(B125,coefficient2!$A$4:$B$7,2,FALSE)) -> 0 | I125: =IF(C125=1,"0",VLOOKUP(C125,coefficient2!$A$10:$B$13,2,FALSE)) -> 0 | J125: =IF(D125=1,"0",VLOOKUP(D125,coefficient2!$A$16:$B$19,2,FALSE)) -> 0.248331 | K125: =IF(E125=1,"0",VLOOKUP(E125,coefficient2!$A$22:$B$25,2,FALSE)) -> 0.2564331 | L125: =IF(F125=1,"0",VLOOKUP(F125,coefficient2!$A$28:$B$31,2,FALSE)) -> 0.2327036 | M125: 0.2625323
A126: 11555 | B126: 1 | C126: 1 | D126: 5 | E126: 5 | F126: 5 | G126: 17 | H126: =IF(B126=1,"0",VLOOKUP(B126,coefficient2!$A$4:$B$7,2,FALSE)) -> 0 | I126: =IF(C126=1,"0",VLOOKUP(C126,coefficient2!$A$10:$B$13,2,FALSE)) -> 0 | J126: =IF(D126=1,"0",VLOOKUP(D126,coefficient2!$A$16:$B$19,2,FALSE)) -> 0.248331 | K126: =IF(E126=1,"0",VLOOKUP(E126,coefficient2!$A$22:$B$25,2,FALSE)) -> 0.2564331 | L126: =IF(F126=1,"0",VLOOKUP(F126,coefficient2!$A$28:$B$31,2,FALSE)) -> 0.2953493 | M126: 0.1998866
A127: 12111 | B127: 1 | C127: 2 | D127: 1 | E127: 1 | F127: 1 | G127: 6 | H127: =IF(B127=1,"0",VLOOKUP(B127,coefficient2!$A$4:$B$7,2,FALSE)) -> 0 | I127: =IF(C127=1,"0",VLOOKUP(C127,coefficient2!$A$10:$B$13,2,FALSE)) -> 0.0581293 | J127: =IF(D127=1,"0",VLOOKUP(D127,coefficient2!$A$16:$B$19,2,FALSE)) -> 0 | K127: =IF(E127=1,"0",VLOOKUP(E127,coefficient2!$A$22:$B$25,2,FALSE)) -> 0 | L127: =IF(F127=1,"0",VLOOKUP(F127,coefficient2!$A$28:$B$31,2,FALSE)) -> 0 | M127: 0.9418707
A128: 12112 | B128: 1 | C128: 2 | D128: 1 | E128: 1 | F128: 2 | G128: 7 | H128: =IF(B128=1,"0",VLOOKUP(B128,coefficient2!$A$4:$B$7,2,FALSE)) -> 0 | I128: =IF(C128=1,"0",VLOOKUP(C128,coefficient2!$A$10:$B$13,2,FALSE)) -> 0.0581293 | J128: =IF(D128=1,"0",VLOOKUP(D128,coefficient2!$A$16:$B$19,2,FALSE)) -> 0 | K128: =IF(E128=1,"0",VLOOKUP(E128,coefficient2!$A$22:$B$25,2,FALSE)) -> 0 | L128: =IF(F128=1,"0",VLOOKUP(F128,coefficient2!$A$28:$B$31,2,FALSE)) -> 0.0580857 | M128: 0.883785
A129: 12113 | B129: 1 | C129: 2 | D129: 1 | E129: 1 | F129: 3 | G129: 8 | H129: =IF(B129=1,"0",VLOOKUP(B129,coefficient2!$A$4:$B$7,2,FALSE)) -> 0 | I129: =IF(C129=1,"0",VLOOKUP(C129,coefficient2!$A$10:$B$13,2,FALSE)) -> 0.0581293 | J129: =IF(D129=1,"0",VLOOKUP(D129,coefficient2!$A$16:$B$19,2,FALSE)) -> 0 | K129: =IF(E129=1,"0",VLOOKUP(E129,coefficient2!$A$22:$B$25,2,FALSE)) -> 0 | L129: =IF(F129=1,"0",VLOOKUP(F129,coefficient2!$A$28:$B$31,2,FALSE)) -> 0.0957539 | M129: 0.8461168
A130: 12114 | B130: 1 | C130: 2 | D130: 1 | E130: 1 | F130: 4 | G130: 9 | H130: =IF(B130=1,"0",VLOOKUP(B130,coefficient2!$A$4:$B$7,2,FALSE)) -> 0 | I130: =IF(C130=1,"0",VLOOKUP(C130,coefficient2!$A$10:$B$13,2,FALSE)) -> 0.0581293 | J130: =IF(D130=1,"0",VLOOKUP(D130,coefficient2!$A$16:$B$19,2,FALSE)) -> 0 | K130: =IF(E130=1,"0",VLOOKUP(E130,coefficient2!$A$22:$B$25,2,FALSE)) -> 0 | L130: =IF(F130=1,"0",VLOOKUP(F130,coefficient2!$A$28:$B$31,2,FALSE)) -> 0.2327036 | M130: =1-H130-I130-J130-K130-L130 -> 0.7091671
A131: 12115 | B131: =INT(LEFT(A131,1)) -> 1 | C131: =INT(MID(A131,2,1)) -> 2 | D131: =INT(MID(A131,3,1)) -> 1 | E131: =INT(MID(A131,4,1)) -> 1 | F131: =INT(RIGHT(A131,1)) -> 5 | G131: =SUM(B131:F131) -> 10 | H131: =IF(B131=1,"0",VLOOKUP(B131,coefficient2!$A$4:$B$7,2,FALSE)) -> 0 | I131: =IF(C131=1,"0",VLOOKUP(C131,coefficient2!$A$10:$B$13,2,FALSE)) -> 0.0581293 | J131: =IF(D131=1,"0",VLOOKUP(D131,coefficient2!$A$16:$B$19,2,FALSE)) -> 0 | K131: =IF(E131=1,"0",VLOOKUP(E131,coefficient2!$A$22:$B$25,2,FALSE)) -> 0 | L131: =IF(F131=1,"0",VLOOKUP(F131,coefficient2!$A$28:$B$31,2,FALSE)) -> 0.2953493 | M131: 0.6465214
A132: 12121 | B132: 1 | C132: 2 | D132: 1 | E132: 2 | F132: 1 | G132: 7 | H132: =IF(B132=1,"0",VLOOKUP(B132,coefficient2!$A$4:$B$7,2,FALSE)) -> 0 | I132: =IF(C132=1,"0",VLOOKUP(C132,coefficient2!$A$10:$B$13,2,FALSE)) -> 0.0581293 | J132: =IF(D132=1,"0",VLOOKUP(D132,coefficient2!$A$16:$B$19,2,FALSE)) -> 0 | K132: =IF(E132=1,"0",VLOOKUP(E132,coefficient2!$A$22:$B$25,2,FALSE)) -> 0.0563998 | L132: =IF(F132=1,"0",VLOOKUP(F132,coefficient2!$A$28:$B$31,2,FALSE)) -> 0 | M132: 0.8854709
A133: 12122 | B133: 1 | C133: 2 | D133: 1 | E133: 2 | F133: 2 | G133: 8 | H133: =IF(B133=1,"0",VLOOKUP(B133,coefficient2!$A$4:$B$7,2,FALSE)) -> 0 | I133: =IF(C133=1,"0",VLOOKUP(C133,coefficient2!$A$10:$B$13,2,FALSE)) -> 0.0581293 | J133: =IF(D133=1,"0",VLOOKUP(D133,coefficient2!$A$16:$B$19,2,FALSE)) -> 0 | K133: =IF(E133=1,"0",VLOOKUP(E133,coefficient2!$A$22:$B$25,2,FALSE)) -> 0.0563998 | L133: =IF(F133=1,"0",VLOOKUP(F133,coefficient2!$A$28:$B$31,2,FALSE)) -> 0.0580857 | M133: 0.8273852
A134: 12123 | B134: 1 | C134: 2 | D134: 1 | E134: 2 | F134: 3 | G134: 9 | H134: =IF(B134=1,"0",VLOOKUP(B134,coefficient2!$A$4:$B$7,2,FALSE)) -> 0 | I134: =IF(C134=1,"0",VLOOKUP(C134,coefficient2!$A$10:$B$13,2,FALSE)) -> 0.0581293 | J134: =IF(D134=1,"0",VLOOKUP(D134,coefficient2!$A$16:$B$19,2,FALSE)) -> 0 | K134: =IF(E134=1,"0",VLOOKUP(E134,coefficient2!$A$22:$B$25,2,FALSE)) -> 0.0563998 | L134: =IF(F134=1,"0",VLOOKUP(F134,coefficient2!$A$28:$B$31,2,FALSE)) -> 0.0957539 | M134: 0.789717
A135: 12124 | B135: 1 | C135: 2 | D135: 1 | E135: 2 | F135: 4 | G135: 10 | H135: =IF(B135=1,"0",VLOOKUP(B135,coefficient2!$A$4:$B$7,2,FALSE)) -> 0 | I135: =IF(C135=1,"0",VLOOKUP(C135,coefficient2!$A$10:$B$13,2,FALSE)) -> 0.0581293 | J135: =IF(D135=1,"0",VLOOKUP(D135,coefficient2!$A$16:$B$19,2,FALSE)) -> 0 | K135: =IF(E135=1,"0",VLOOKUP(E135,coefficient2!$A$22:$B$25,2,FALSE)) -> 0.0563998 | L135: =IF(F135=1,"0",VLOOKUP(F135,coefficient2!$A$28:$B$31,2,FALSE)) -> 0.2327036 | M135: 0.6527673
A136: 12125 | B136: 1 | C136: 2 | D136: 1 | E136: 2 | F136: 5 | G136: 11 | H136: =IF(B136=1,"0",VLOOKUP(B136,coefficient2!$A$4:$B$7,2,FALSE)) -> 0 | I136: =IF(C136=1,"0",VLOOKUP(C136,coefficient2!$A$10:$B$13,2,FALSE)) -> 0.0581293 | J136: =IF(D136=1,"0",VLOOKUP(D136,coefficient2!$A$16:$B$19,2,FALSE)) -> 0 | K136: =IF(E136=1,"0",VLOOKUP(E136,coefficient2!$A$22:$B$25,2,FALSE)) -> 0.0563998 | L136: =IF(F136=1,"0",VLOOKUP(F136,coefficient2!$A$28:$B$31,2,FALSE)) -> 0.2953493 | M136: 0.5901216
A137: 12131 | B137: 1 | C137: 2 | D137: 1 | E137: 3 | F137: 1 | G137: 8 | H137: =IF(B137=1,"0",VLOOKUP(B137,coefficient2!$A$4:$B$7,2,FALSE)) -> 0 | I137: =IF(C137=1,"0",VLOOKUP(C137,coefficient2!$A$10:$B$13,2,FALSE)) -> 0.0581293 | J137: =IF(D137=1,"0",VLOOKUP(D137,coefficient2!$A$16:$B$19,2,FALSE)) -> 0 | K137: =IF(E137=1,"0",VLOOKUP(E137,coefficient2!$A$22:$B$25,2,FALSE)) -> 0.0664922 | L137: =IF(F137=1,"0",VLOOKUP(F137,coefficient2!$A$28:$B$31,2,FALSE)) -> 0 | M137: 0.8753785
A138: 12132 | B138: 1 | C138: 2 | D138: 1 | E138: 3 | F138: 2 | G138: 9 | H138: =IF(B138=1,"0",VLOOKUP(B138,coefficient2!$A$4:$B$7,2,FALSE)) -> 0 | I138: =IF(C138=1,"0",VLOOKUP(C138,coefficient2!$A$10:$B$13,2,FALSE)) -> 0.0581293 | J138: =IF(D138=1,"0",VLOOKUP(D138,coefficient2!$A$16:$B$19,2,FALSE)) -> 0 | K138: =IF(E138=1,"0",VLOOKUP(E138,coefficient2!$A$22:$B$25,2,FALSE)) -> 0.0664922 | L138: =IF(F138=1,"0",VLOOKUP(F138,coefficient2!$A$28:$B$31,2,FALSE)) -> 0.0580857 | M138: 0.8172928
A139: 12133 | B139: 1 | C139: 2 | D139: 1 | E139: 3 | F139: 3 | G139: 10 | H139: =IF(B139=1,"0",VLOOKUP(B139,coefficient2!$A$4:$B$7,2,FALSE)) -> 0 | I139: =IF(C139=1,"0",VLOOKUP(C139,coefficient2!$A$10:$B$13,2,FALSE)) -> 0.0581293 | J139: =IF(D139=1,"0",VLOOKUP(D139,coefficient2!$A$16:$B$19,2,FALSE)) -> 0 | K139: =IF(E139=1,"0",VLOOKUP(E139,coefficient2!$A$22:$B$25,2,FALSE)) -> 0.0664922 | L139: =IF(F139=1,"0",VLOOKUP(F139,coefficient2!$A$28:$B$31,2,FALSE)) -> 0.0957539 | M139: 0.7796246
A140: 12134 | B140: 1 | C140: 2 | D140: 1 | E140: 3 | F140: 4 | G140: 11 | H140: =IF(B140=1,"0",VLOOKUP(B140,coefficient2!$A$4:$B$7,2,FALSE)) -> 0 | I140: =IF(C140=1,"0",VLOOKUP(C140,coefficient2!$A$10:$B$13,2,FALSE)) -> 0.0581293 | J140: =IF(D140=1,"0",VLOOKUP(D140,coefficient2!$A$16:$B$19,2,FALSE)) -> 0 | K140: =IF(E140=1,"0",VLOOKUP(E140,coefficient2!$A$22:$B$25,2,FALSE)) -> 0.0664922 | L140: =IF(F140=1,"0",VLOOKUP(F140,coefficient2!$A$28:$B$31,2,FALSE)) -> 0.2327036 | M140: 0.6426749
A141: 12135 | B141: 1 | C141: 2 | D141: 1 | E141: 3 | F141: 5 | G141: 12 | H141: =IF(B141=1,"0",VLOOKUP(B141,coefficient2!$A$4:$B$7,2,FALSE)) -> 0 | I141: =IF(C141=1,"0",VLOOKUP(C141,coefficient2!$A$10:$B$13,2,FALSE)) -> 0.0581293 | J141: =IF(D141=1,"0",VLOOKUP(D141,coefficient2!$A$16:$B$19,2,FALSE)) -> 0 | K141: =IF(E141=1,"0",VLOOKUP(E141,coefficient2!$A$22:$B$25,2,FALSE)) -> 0.0664922 | L141: =IF(F141=1,"0",VLOOKUP(F141,coefficient2!$A$28:$B$31,2,FALSE)) -> 0.2953493 | M141: 0.5800292
A142: 12141 | B142: 1 | C142: 2 | D142: 1 | E142: 4 | F142: 1 | G142: 9 | H142: =IF(B142=1,"0",VLOOKUP(B142,coefficient2!$A$4:$B$7,2,FALSE)) -> 0 | I142: =IF(C142=1,"0",VLOOKUP(C142,coefficient2!$A$10:$B$13,2,FALSE)) -> 0.0581293 | J142: =IF(D142=1,"0",VLOOKUP(D142,coefficient2!$A$16:$B$19,2,FALSE)) -> 0 | K142: =IF(E142=1,"0",VLOOKUP(E142,coefficient2!$A$22:$B$25,2,FALSE)) -> 0.2068864 | L142: =IF(F142=1,"0",VLOOKUP(F142,coefficient2!$A$28:$B$31,2,FALSE)) -> 0 | M142: 0.7349843
A143: 12142 | B143: 1 | C143: 2 | D143: 1 | E143: 4 | F143: 2 | G143: 10 | H143: =IF(B143=1,"0",VLOOKUP(B143,coefficient2!$A$4:$B$7,2,FALSE)) -> 0 | I143: =IF(C143=1,"0",VLOOKUP(C143,coefficient2!$A$10:$B$13,2,FALSE)) -> 0.0581293 | J143: =IF(D143=1,"0",VLOOKUP(D143,coefficient2!$A$16:$B$19,2,FALSE)) -> 0 | K143: =IF(E143=1,"0",VLOOKUP(E143,coefficient2!$A$22:$B$25,2,FALSE)) -> 0.2068864 | L143: =IF(F143=1,"0",VLOOKUP(F143,coefficient2!$A$28:$B$31,2,FALSE)) -> 0.0580857 | M143: 0.6768986
A144: 12143 | B144: 1 | C144: 2 | D144: 1 | E144: 4 | F144: 3 | G144: 11 | H144: =IF(B144=1,"0",VLOOKUP(B144,coefficient2!$A$4:$B$7,2,FALSE)) -> 0 | I144: =IF(C144=1,"0",VLOOKUP(C144,coefficient2!$A$10:$B$13,2,FALSE)) -> 0.0581293 | J144: =IF(D144=1,"0",VLOOKUP(D144,coefficient2!$A$16:$B$19,2,FALSE)) -> 0 | K144: =IF(E144=1,"0",VLOOKUP(E144,coefficient2!$A$22:$B$25,2,FALSE)) -> 0.2068864 | L144: =IF(F144=1,"0",VLOOKUP(F144,coefficient2!$A$28:$B$31,2,FALSE)) -> 0.0957539 | M144: 0.6392304
A145: 12144 | B145: 1 | C145: 2 | D145: 1 | E145: 4 | F145: 4 | G145: 12 | H145: =IF(B145=1,"0",VLOOKUP(B145,coefficient2!$A$4:$B$7,2,FALSE)) -> 0 | I145: =IF(C145=1,"0",VLOOKUP(C145,coefficient2!$A$10:$B$13,2,FALSE)) -> 0.0581293 | J145: =IF(D145=1,"0",VLOOKUP(D145,coefficient2!$A$16:$B$19,2,FALSE)) -> 0 | K145: =IF(E145=1,"0",VLOOKUP(E145,coefficient2!$A$22:$B$25,2,FALSE)) -> 0.2068864 | L145: =IF(F145=1,"0",VLOOKUP(F145,coefficient2!$A$28:$B$31,2,FALSE)) -> 0.2327036 | M145: 0.5022807
A146: 12145 | B146: 1 | C146: 2 | D146: 1 | E146: 4 | F146: 5 | G146: 13 | H146: =IF(B146=1,"0",VLOOKUP(B146,coefficient2!$A$4:$B$7,2,FALSE)) -> 0 | I146: =IF(C146=1,"0",VLOOKUP(C146,coefficient2!$A$10:$B$13,2,FALSE)) -> 0.0581293 | J146: =IF(D146=1,"0",VLOOKUP(D146,coefficient2!$A$16:$B$19,2,FALSE)) -> 0 | K146: =IF(E146=1,"0",VLOOKUP(E146,coefficient2!$A$22:$B$25,2,FALSE)) -> 0.2068864 | L146: =IF(F146=1,"0",VLOOKUP(F146,coefficient2!$A$28:$B$31,2,FALSE)) -> 0.2953493 | M146: 0.439635
A147: 12151 | B147: 1 | C147: 2 | D147: 1 | E147: 5 | F147: 1 | G147: 10 | H147: =IF(B147=1,"0",VLOOKUP(B147,coefficient2!$A$4:$B$7,2,FALSE)) -> 0 | I147: =IF(C147=1,"0",VLOOKUP(C147,coefficient2!$A$10:$B$13,2,FALSE)) -> 0.0581293 | J147: =IF(D147=1,"0",VLOOKUP(D147,coefficient2!$A$16:$B$19,2,FALSE)) -> 0 | K147: =IF(E147=1,"0",VLOOKUP(E147,coefficient2!$A$22:$B$25,2,FALSE)) -> 0.2564331 | L147: =IF(F147=1,"0",VLOOKUP(F147,coefficient2!$A$28:$B$31,2,FALSE)) -> 0 | M147: 0.6854376
A148: 12152 | B148: 1 | C148: 2 | D148: 1 | E148: 5 | F148: 2 | G148: 11 | H148: =IF(B148=1,"0",VLOOKUP(B148,coefficient2!$A$4:$B$7,2,FALSE)) -> 0 | I148: =IF(C148=1,"0",VLOOKUP(C148,coefficient2!$A$10:$B$13,2,FALSE)) -> 0.0581293 | J148: =IF(D148=1,"0",VLOOKUP(D148,coefficient2!$A$16:$B$19,2,FALSE)) -> 0 | K148: =IF(E148=1,"0",VLOOKUP(E148,coefficient2!$A$22:$B$25,2,FALSE)) -> 0.2564331 | L148: =IF(F148=1,"0",VLOOKUP(F148,coefficient2!$A$28:$B$31,2,FALSE)) -> 0.0580857 | M148: 0.6273519
A149: 12153 | B149: 1 | C149: 2 | D149: 1 | E149: 5 | F149: 3 | G149: 12 | H149: =IF(B149=1,"0",VLOOKUP(B149,coefficient2!$A$4:$B$7,2,FALSE)) -> 0 | I149: =IF(C149=1,"0",VLOOKUP(C149,coefficient2!$A$10:$B$13,2,FALSE)) -> 0.0581293 | J149: =IF(D149=1,"0",VLOOKUP(D149,coefficient2!$A$16:$B$19,2,FALSE)) -> 0 | K149: =IF(E149=1,"0",VLOOKUP(E149,coefficient2!$A$22:$B$25,2,FALSE)) -> 0.2564331 | L149: =IF(F149=1,"0",VLOOKUP(F149,coefficient2!$A$28:$B$31,2,FALSE)) -> 0.0957539 | M149: 0.5896837
A150: 12154 | B150: 1 | C150: 2 | D150: 1 | E150: 5 | F150: 4 | G150: 13 | H150: =IF(B150=1,"0",VLOOKUP(B150,coefficient2!$A$4:$B$7,2,FALSE)) -> 0 | I150: =IF(C150=1,"0",VLOOKUP(C150,coefficient2!$A$10:$B$13,2,FALSE)) -> 0.0581293 | J150: =IF(D150=1,"0",VLOOKUP(D150,coefficient2!$A$16:$B$19,2,FALSE)) -> 0 | K150: =IF(E150=1,"0",VLOOKUP(E150,coefficient2!$A$22:$B$25,2,FALSE)) -> 0.2564331 | L150: =IF(F150=1,"0",VLOOKUP(F150,coefficient2!$A$28:$B$31,2,FALSE)) -> 0.2327036 | M150: 0.452734
A151: 12155 | B151: 1 | C151: 2 | D151: 1 | E151: 5 | F151: 5 | G151: 14 | H151: =IF(B151=1,"0",VLOOKUP(B151,coefficient2!$A$4:$B$7,2,FALSE)) -> 0 | I151: =IF(C151=1,"0",VLOOKUP(C151,coefficient2!$A$10:$B$13,2,FALSE)) -> 0.0581293 | J151: =IF(D151=1,"0",VLOOKUP(D151,coefficient2!$A$16:$B$19,2,FALSE)) -> 0 | K151: =IF(E151=1,"0",VLOOKUP(E151,coefficient2!$A$22:$B$25,2,FALSE)) -> 0.2564331 | L151: =IF(F151=1,"0",VLOOKUP(F151,coefficient2!$A$28:$B$31,2,FALSE)) -> 0.2953493 | M151: 0.3900883
A152: 12211 | B152: 1 | C152: 2 | D152: 2 | E152: 1 | F152: 1 | G152: 7 | H152: =IF(B152=1,"0",VLOOKUP(B152,coefficient2!$A$4:$B$7,2,FALSE)) -> 0 | I152: =IF(C152=1,"0",VLOOKUP(C152,coefficient2!$A$10:$B$13,2,FALSE)) -> 0.0581293 | J152: =IF(D152=1,"0",VLOOKUP(D152,coefficient2!$A$16:$B$19,2,FALSE)) -> 0.0582544 | K152: =IF(E152=1,"0",VLOOKUP(E152,coefficient2!$A$22:$B$25,2,FALSE)) -> 0 | L152: =IF(F152=1,"0",VLOOKUP(F152,coefficient2!$A$28:$B$31,2,FALSE)) -> 0 | M152: 0.8836163
A153: 12212 | B153: 1 | C153: 2 | D153: 2 | E153: 1 | F153: 2 | G153: 8 | H153: =IF(B153=1,"0",VLOOKUP(B153,coefficient2!$A$4:$B$7,2,FALSE)) -> 0 | I153: =IF(C153=1,"0",VLOOKUP(C153,coefficient2!$A$10:$B$13,2,FALSE)) -> 0.0581293 | J153: =IF(D153=1,"0",VLOOKUP(D153,coefficient2!$A$16:$B$19,2,FALSE)) -> 0.0582544 | K153: =IF(E153=1,"0",VLOOKUP(E153,coefficient2!$A$22:$B$25,2,FALSE)) -> 0 | L153: =IF(F153=1,"0",VLOOKUP(F153,coefficient2!$A$28:$B$31,2,FALSE)) -> 0.0580857 | M153: 0.8255306
A154: 12213 | B154: 1 | C154: 2 | D154: 2 | E154: 1 | F154: 3 | G154: 9 | H154: =IF(B154=1,"0",VLOOKUP(B154,coefficient2!$A$4:$B$7,2,FALSE)) -> 0 | I154: =IF(C154=1,"0",VLOOKUP(C154,coefficient2!$A$10:$B$13,2,FALSE)) -> 0.0581293 | J154: =IF(D154=1,"0",VLOOKUP(D154,coefficient2!$A$16:$B$19,2,FALSE)) -> 0.0582544 | K154: =IF(E154=1,"0",VLOOKUP(E154,coefficient2!$A$22:$B$25,2,FALSE)) -> 0 | L154: =IF(F154=1,"0",VLOOKUP(F154,coefficient2!$A$28:$B$31,2,FALSE)) -> 0.0957539 | M154: 0.7878624
A155: 12214 | B155: 1 | C155: 2 | D155: 2 | E155: 1 | F155: 4 | G155: 10 | H155: =IF(B155=1,"0",VLOOKUP(B155,coefficient2!$A$4:$B$7,2,FALSE)) -> 0 | I155: =IF(C155=1,"0",VLOOKUP(C155,coefficient2!$A$10:$B$13,2,FALSE)) -> 0.0581293 | J155: =IF(D155=1,"0",VLOOKUP(D155,coefficient2!$A$16:$B$19,2,FALSE)) -> 0.0582544 | K155: =IF(E155=1,"0",VLOOKUP(E155,coefficient2!$A$22:$B$25,2,FALSE)) -> 0 | L155: =IF(F155=1,"0",VLOOKUP(F155,coefficient2!$A$28:$B$31,2,FALSE)) -> 0.2327036 | M155: 0.6509127
A156: 12215 | B156: 1 | C156: 2 | D156: 2 | E156: 1 | F156: 5 | G156: 11 | H156: =IF(B156=1,"0",VLOOKUP(B156,coefficient2!$A$4:$B$7,2,FALSE)) -> 0 | I156: =IF(C156=1,"0",VLOOKUP(C156,coefficient2!$A$10:$B$13,2,FALSE)) -> 0.0581293 | J156: =IF(D156=1,"0",VLOOKUP(D156,coefficient2!$A$16:$B$19,2,FALSE)) -> 0.0582544 | K156: =IF(E156=1,"0",VLOOKUP(E156,coefficient2!$A$22:$B$25,2,FALSE)) -> 0 | L156: =IF(F156=1,"0",VLOOKUP(F156,coefficient2!$A$28:$B$31,2,FALSE)) -> 0.2953493 | M156: 0.588267
A157: 12221 | B157: 1 | C157: 2 | D157: 2 | E157: 2 | F157: 1 | G157: 8 | H157: =IF(B157=1,"0",VLOOKUP(B157,coefficient2!$A$4:$B$7,2,FALSE)) -> 0 | I157: =IF(C157=1,"0",VLOOKUP(C157,coefficient2!$A$10:$B$13,2,FALSE)) -> 0.0581293 | J157: =IF(D157=1,"0",VLOOKUP(D157,coefficient2!$A$16:$B$19,2,FALSE)) -> 0.0582544 | K157: =IF(E157=1,"0",VLOOKUP(E157,coefficient2!$A$22:$B$25,2,FALSE)) -> 0.0563998 | L157: =IF(F157=1,"0",VLOOKUP(F157,coefficient2!$A$28:$B$31,2,FALSE)) -> 0 | M157: 0.8272165
A158: 12222 | B158: 1 | C158: 2 | D158: 2 | E158: 2 | F158: 2 | G158: 9 | H158: =IF(B158=1,"0",VLOOKUP(B158,coefficient2!$A$4:$B$7,2,FALSE)) -> 0 | I158: =IF(C158=1,"0",VLOOKUP(C158,coefficient2!$A$10:$B$13,2,FALSE)) -> 0.0581293 | J158: =IF(D158=1,"0",VLOOKUP(D158,coefficient2!$A$16:$B$19,2,FALSE)) -> 0.0582544 | K158: =IF(E158=1,"0",VLOOKUP(E158,coefficient2!$A$22:$B$25,2,FALSE)) -> 0.0563998 | L158: =IF(F158=1,"0",VLOOKUP(F158,coefficient2!$A$28:$B$31,2,FALSE)) -> 0.0580857 | M158: 0.7691308
A159: 12223 | B159: 1 | C159: 2 | D159: 2 | E159: 2 | F159: 3 | G159: 10 | H159: =IF(B159=1,"0",VLOOKUP(B159,coefficient2!$A$4:$B$7,2,FALSE)) -> 0 | I159: =IF(C159=1,"0",VLOOKUP(C159,coefficient2!$A$10:$B$13,2,FALSE)) -> 0.0581293 | J159: =IF(D159=1,"0",VLOOKUP(D159,coefficient2!$A$16:$B$19,2,FALSE)) -> 0.0582544 | K159: =IF(E159=1,"0",VLOOKUP(E159,coefficient2!$A$22:$B$25,2,FALSE)) -> 0.0563998 | L159: =IF(F159=1,"0",VLOOKUP(F159,coefficient2!$A$28:$B$31,2,FALSE)) -> 0.0957539 | M159: 0.7314626
A160: 12224 | B160: 1 | C160: 2 | D160: 2 | E160: 2 | F160: 4 | G160: 11 | H160: =IF(B160=1,"0",VLOOKUP(B160,coefficient2!$A$4:$B$7,2,FALSE)) -> 0 | I160: =IF(C160=1,"0",VLOOKUP(C160,coefficient2!$A$10:$B$13,2,FALSE)) -> 0.0581293 | J160: =IF(D160=1,"0",VLOOKUP(D160,coefficient2!$A$16:$B$19,2,FALSE)) -> 0.0582544 | K160: =IF(E160=1,"0",VLOOKUP(E160,coefficient2!$A$22:$B$25,2,FALSE)) -> 0.0563998 | L160: =IF(F160=1,"0",VLOOKUP(F160,coefficient2!$A$28:$B$31,2,FALSE)) -> 0.2327036 | M160: 0.5945129
A161: 12225 | B161: 1 | C161: 2 | D161: 2 | E161: 2 | F161: 5 | G161: 12 | H161: =IF(B161=1,"0",VLOOKUP(B161,coefficient2!$A$4:$B$7,2,FALSE)) -> 0 | I161: =IF(C161=1,"0",VLOOKUP(C161,coefficient2!$A$10:$B$13,2,FALSE)) -> 0.0581293 | J161: =IF(D161=1,"0",VLOOKUP(D161,coefficient2!$A$16:$B$19,2,FALSE)) -> 0.0582544 | K161: =IF(E161=1,"0",VLOOKUP(E161,coefficient2!$A$22:$B$25,2,FALSE)) -> 0.0563998 | L161: =IF(F161=1,"0",VLOOKUP(F161,coefficient2!$A$28:$B$31,2,FALSE)) -> 0.2953493 | M161: 0.5318672
A162: 12231 | B162: 1 | C162: 2 | D162: 2 | E162: 3 | F162: 1 | G162: 9 | H162: =IF(B162=1,"0",VLOOKUP(B162,coefficient2!$A$4:$B$7,2,FALSE)) -> 0 | I162: =IF(C162=1,"0",VLOOKUP(C162,coefficient2!$A$10:$B$13,2,FALSE)) -> 0.0581293 | J162: =IF(D162=1,"0",VLOOKUP(D162,coefficient2!$A$16:$B$19,2,FALSE)) -> 0.0582544 | K162: =IF(E162=1,"0",VLOOKUP(E162,coefficient2!$A$22:$B$25,2,FALSE)) -> 0.0664922 | L162: =IF(F162=1,"0",VLOOKUP(F162,coefficient2!$A$28:$B$31,2,FALSE)) -> 0 | M162: 0.8171241
A163: 12232 | B163: 1 | C163: 2 | D163: 2 | E163: 3 | F163: 2 | G163: 10 | H163: =IF(B163=1,"0",VLOOKUP(B163,coefficient2!$A$4:$B$7,2,FALSE)) -> 0 | I163: =IF(C163=1,"0",VLOOKUP(C163,coefficient2!$A$10:$B$13,2,FALSE)) -> 0.0581293 | J163: =IF(D163=1,"0",VLOOKUP(D163,coefficient2!$A$16:$B$19,2,FALSE)) -> 0.0582544 | K163: =IF(E163=1,"0",VLOOKUP(E163,coefficient2!$A$22:$B$25,2,FALSE)) -> 0.0664922 | L163: =IF(F163=1,"0",VLOOKUP(F163,coefficient2!$A$28:$B$31,2,FALSE)) -> 0.0580857 | M163: 0.7590384
A164: 12233 | B164: 1 | C164: 2 | D164: 2 | E164: 3 | F164: 3 | G164: 11 | H164: =IF(B164=1,"0",VLOOKUP(B164,coefficient2!$A$4:$B$7,2,FALSE)) -> 0 | I164: =IF(C164=1,"0",VLOOKUP(C164,coefficient2!$A$10:$B$13,2,FALSE)) -> 0.0581293 | J164: =IF(D164=1,"0",VLOOKUP(D164,coefficient2!$A$16:$B$19,2,FALSE)) -> 0.0582544 | K164: =IF(E164=1,"0",VLOOKUP(E164,coefficient2!$A$22:$B$25,2,FALSE)) -> 0.0664922 | L164: =IF(F164=1,"0",VLOOKUP(F164,coefficient2!$A$28:$B$31,2,FALSE)) -> 0.0957539 | M164: 0.7213702
A165: 12234 | B165: 1 | C165: 2 | D165: 2 | E165: 3 | F165: 4 | G165: 12 | H165: =IF(B165=1,"0",VLOOKUP(B165,coefficient2!$A$4:$B$7,2,FALSE)) -> 0 | I165: =IF(C165=1,"0",VLOOKUP(C165,coefficient2!$A$10:$B$13,2,FALSE)) -> 0.0581293 | J165: =IF(D165=1,"0",VLOOKUP(D165,coefficient2!$A$16:$B$19,2,FALSE)) -> 0.0582544 | K165: =IF(E165=1,"0",VLOOKUP(E165,coefficient2!$A$22:$B$25,2,FALSE)) -> 0.0664922 | L165: =IF(F165=1,"0",VLOOKUP(F165,coefficient2!$A$28:$B$31,2,FALSE)) -> 0.2327036 | M165: 0.5844205
A166: 12235 | B166: 1 | C166: 2 | D166: 2 | E166: 3 | F166: 5 | G166: 13 | H166: =IF(B166=1,"0",VLOOKUP(B166,coefficient2!$A$4:$B$7,2,FALSE)) -> 0 | I166: =IF(C166=1,"0",VLOOKUP(C166,coefficient2!$A$10:$B$13,2,FALSE)) -> 0.0581293 | J166: =IF(D166=1,"0",VLOOKUP(D166,coefficient2!$A$16:$B$19,2,FALSE)) -> 0.0582544 | K166: =IF(E166=1,"0",VLOOKUP(E166,coefficient2!$A$22:$B$25,2,FALSE)) -> 0.0664922 | L166: =IF(F166=1,"0",VLOOKUP(F166,coefficient2!$A$28:$B$31,2,FALSE)) -> 0.2953493 | M166: 0.5217748
A167: 12241 | B167: 1 | C167: 2 | D167: 2 | E167: 4 | F167: 1 | G167: 10 | H167: =IF(B167=1,"0",VLOOKUP(B167,coefficient2!$A$4:$B$7,2,FALSE)) -> 0 | I167: =IF(C167=1,"0",VLOOKUP(C167,coefficient2!$A$10:$B$13,2,FALSE)) -> 0.0581293 | J167: =IF(D167=1,"0",VLOOKUP(D167,coefficient2!$A$16:$B$19,2,FALSE)) -> 0.0582544 | K167: =IF(E167=1,"0",VLOOKUP(E167,coefficient2!$A$22:$B$25,2,FALSE)) -> 0.2068864 | L167: =IF(F167=1,"0",VLOOKUP(F167,coefficient2!$A$28:$B$31,2,FALSE)) -> 0 | M167: 0.6767299
A168: 12242 | B168: 1 | C168: 2 | D168: 2 | E168: 4 | F168: 2 | G168: 11 | H168: =IF(B168=1,"0",VLOOKUP(B168,coefficient2!$A$4:$B$7,2,FALSE)) -> 0 | I168: =IF(C168=1,"0",VLOOKUP(C168,coefficient2!$A$10:$B$13,2,FALSE)) -> 0.0581293 | J168: =IF(D168=1,"0",VLOOKUP(D168,coefficient2!$A$16:$B$19,2,FALSE)) -> 0.0582544 | K168: =IF(E168=1,"0",VLOOKUP(E168,coefficient2!$A$22:$B$25,2,FALSE)) -> 0.2068864 | L168: =IF(F168=1,"0",VLOOKUP(F168,coefficient2!$A$28:$B$31,2,FALSE)) -> 0.0580857 | M168: 0.6186442
A169: 12243 | B169: 1 | C169: 2 | D169: 2 | E169: 4 | F169: 3 | G169: 12 | H169: =IF(B169=1,"0",VLOOKUP(B169,coefficient2!$A$4:$B$7,2,FALSE)) -> 0 | I169: =IF(C169=1,"0",VLOOKUP(C169,coefficient2!$A$10:$B$13,2,FALSE)) -> 0.0581293 | J169: =IF(D169=1,"0",VLOOKUP(D169,coefficient2!$A$16:$B$19,2,FALSE)) -> 0.0582544 | K169: =IF(E169=1,"0",VLOOKUP(E169,coefficient2!$A$22:$B$25,2,FALSE)) -> 0.2068864 | L169: =IF(F169=1,"0",VLOOKUP(F169,coefficient2!$A$28:$B$31,2,FALSE)) -> 0.0957539 | M169: 0.580976
A170: 12244 | B170: 1 | C170: 2 | D170: 2 | E170: 4 | F170: 4 | G170: 13 | H170: =IF(B170=1,"0",VLOOKUP(B170,coefficient2!$A$4:$B$7,2,FALSE)) -> 0 | I170: =IF(C170=1,"0",VLOOKUP(C170,coefficient2!$A$10:$B$13,2,FALSE)) -> 0.0581293 | J170: =IF(D170=1,"0",VLOOKUP(D170,coefficient2!$A$16:$B$19,2,FALSE)) -> 0.0582544 | K170: =IF(E170=1,"0",VLOOKUP(E170,coefficient2!$A$22:$B$25,2,FALSE)) -> 0.2068864 | L170: =IF(F170=1,"0",VLOOKUP(F170,coefficient2!$A$28:$B$31,2,FALSE)) -> 0.2327036 | M170: 0.4440263
A171: 12245 | B171: 1 | C171: 2 | D171: 2 | E171: 4 | F171: 5 | G171: 14 | H171: =IF(B171=1,"0",VLOOKUP(B171,coefficient2!$A$4:$B$7,2,FALSE)) -> 0 | I171: =IF(C171=1,"0",VLOOKUP(C171,coefficient2!$A$10:$B$13,2,FALSE)) -> 0.0581293 | J171: =IF(D171=1,"0",VLOOKUP(D171,coefficient2!$A$16:$B$19,2,FALSE)) -> 0.0582544 | K171: =IF(E171=1,"0",VLOOKUP(E171,coefficient2!$A$22:$B$25,2,FALSE)) -> 0.2068864 | L171: =IF(F171=1,"0",VLOOKUP(F171,coefficient2!$A$28:$B$31,2,FALSE)) -> 0.2953493 | M171: 0.3813806
A172: 12251 | B172: 1 | C172: 2 | D172: 2 | E172: 5 | F172: 1 | G172: 11 | H172: =IF(B172=1,"0",VLOOKUP(B172,coefficient2!$A$4:$B$7,2,FALSE)) -> 0 | I172: =IF(C172=1,"0",VLOOKUP(C172,coefficient2!$A$10:$B$13,2,FALSE)) -> 0.0581293 | J172: =IF(D172=1,"0",VLOOKUP(D172,coefficient2!$A$16:$B$19,2,FALSE)) -> 0.0582544 | K172: =IF(E172=1,"0",VLOOKUP(E172,coefficient2!$A$22:$B$25,2,FALSE)) -> 0.2564331 | L172: =IF(F172=1,"0",VLOOKUP(F172,coefficient2!$A$28:$B$31,2,FALSE)) -> 0 | M172: 0.6271832
A173: 12252 | B173: 1 | C173: 2 | D173: 2 | E173: 5 | F173: 2 | G173: 12 | H173: =IF(B173=1,"0",VLOOKUP(B173,coefficient2!$A$4:$B$7,2,FALSE)) -> 0 | I173: =IF(C173=1,"0",VLOOKUP(C173,coefficient2!$A$10:$B$13,2,FALSE)) -> 0.0581293 | J173: =IF(D173=1,"0",VLOOKUP(D173,coefficient2!$A$16:$B$19,2,FALSE)) -> 0.0582544 | K173: =IF(E173=1,"0",VLOOKUP(E173,coefficient2!$A$22:$B$25,2,FALSE)) -> 0.2564331 | L173: =IF(F173=1,"0",VLOOKUP(F173,coefficient2!$A$28:$B$31,2,FALSE)) -> 0.0580857 | M173: 0.5690975
A174: 12253 | B174: 1 | C174: 2 | D174: 2 | E174: 5 | F174: 3 | G174: 13 | H174: =IF(B174=1,"0",VLOOKUP(B174,coefficient2!$A$4:$B$7,2,FALSE)) -> 0 | I174: =IF(C174=1,"0",VLOOKUP(C174,coefficient2!$A$10:$B$13,2,FALSE)) -> 0.0581293 | J174: =IF(D174=1,"0",VLOOKUP(D174,coefficient2!$A$16:$B$19,2,FALSE)) -> 0.0582544 | K174: =IF(E174=1,"0",VLOOKUP(E174,coefficient2!$A$22:$B$25,2,FALSE)) -> 0.2564331 | L174: =IF(F174=1,"0",VLOOKUP(F174,coefficient2!$A$28:$B$31,2,FALSE)) -> 0.0957539 | M174: 0.5314293
A175: 12254 | B175: 1 | C175: 2 | D175: 2 | E175: 5 | F175: 4 | G175: 14 | H175: =IF(B175=1,"0",VLOOKUP(B175,coefficient2!$A$4:$B$7,2,FALSE)) -> 0 | I175: =IF(C175=1,"0",VLOOKUP(C175,coefficient2!$A$10:$B$13,2,FALSE)) -> 0.0581293 | J175: =IF(D175=1,"0",VLOOKUP(D175,coefficient2!$A$16:$B$19,2,FALSE)) -> 0.0582544 | K175: =IF(E175=1,"0",VLOOKUP(E175,coefficient2!$A$22:$B$25,2,FALSE)) -> 0.2564331 | L175: =IF(F175=1,"0",VLOOKUP(F175,coefficient2!$A$28:$B$31,2,FALSE)) -> 0.2327036 | M175: 0.3944796
A176: 12255 | B176: 1 | C176: 2 | D176: 2 | E176: 5 | F176: 5 | G176: 15 | H176: =IF(B176=1,"0",VLOOKUP(B176,coefficient2!$A$4:$B$7,2,FALSE)) -> 0 | I176: =IF(C176=1,"0",VLOOKUP(C176,coefficient2!$A$10:$B$13,2,FALSE)) -> 0.0581293 | J176: =IF(D176=1,"0",VLOOKUP(D176,coefficient2!$A$16:$B$19,2,FALSE)) -> 0.0582544 | K176: =IF(E176=1,"0",VLOOKUP(E176,coefficient2!$A$22:$B$25,2,FALSE)) -> 0.2564331 | L176: =IF(F176=1,"0",VLOOKUP(F176,coefficient2!$A$28:$B$31,2,FALSE)) -> 0.2953493 | M176: 0.3318339
A177: 12311 | B177: 1 | C177: 2 | D177: 3 | E177: 1 | F177: 1 | G177: 8 | H177: =IF(B177=1,"0",VLOOKUP(B177,coefficient2!$A$4:$B$7,2,FALSE)) -> 0 | I177: =IF(C177=1,"0",VLOOKUP(C177,coefficient2!$A$10:$B$13,2,FALSE)) -> 0.0581293 | J177: =IF(D177=1,"0",VLOOKUP(D177,coefficient2!$A$16:$B$19,2,FALSE)) -> 0.0711974 | K177: =IF(E177=1,"0",VLOOKUP(E177,coefficient2!$A$22:$B$25,2,FALSE)) -> 0 | L177: =IF(F177=1,"0",VLOOKUP(F177,coefficient2!$A$28:$B$31,2,FALSE)) -> 0 | M177: 0.8706733
A178: 12312 | B178: 1 | C178: 2 | D178: 3 | E178: 1 | F178: 2 | G178: 9 | H178: =IF(B178=1,"0",VLOOKUP(B178,coefficient2!$A$4:$B$7,2,FALSE)) -> 0 | I178: =IF(C178=1,"0",VLOOKUP(C178,coefficient2!$A$10:$B$13,2,FALSE)) -> 0.0581293 | J178: =IF(D178=1,"0",VLOOKUP(D178,coefficient2!$A$16:$B$19,2,FALSE)) -> 0.0711974 | K178: =IF(E178=1,"0",VLOOKUP(E178,coefficient2!$A$22:$B$25,2,FALSE)) -> 0 | L178: =IF(F178=1,"0",VLOOKUP(F178,coefficient2!$A$28:$B$31,2,FALSE)) -> 0.0580857 | M178: 0.8125876
A179: 12313 | B179: 1 | C179: 2 | D179: 3 | E179: 1 | F179: 3 | G179: 10 | H179: =IF(B179=1,"0",VLOOKUP(B179,coefficient2!$A$4:$B$7,2,FALSE)) -> 0 | I179: =IF(C179=1,"0",VLOOKUP(C179,coefficient2!$A$10:$B$13,2,FALSE)) -> 0.0581293 | J179: =IF(D179=1,"0",VLOOKUP(D179,coefficient2!$A$16:$B$19,2,FALSE)) -> 0.0711974 | K179: =IF(E179=1,"0",VLOOKUP(E179,coefficient2!$A$22:$B$25,2,FALSE)) -> 0 | L179: =IF(F179=1,"0",VLOOKUP(F179,coefficient2!$A$28:$B$31,2,FALSE)) -> 0.0957539 | M179: 0.7749194
A180: 12314 | B180: 1 | C180: 2 | D180: 3 | E180: 1 | F180: 4 | G180: 11 | H180: =IF(B180=1,"0",VLOOKUP(B180,coefficient2!$A$4:$B$7,2,FALSE)) -> 0 | I180: =IF(C180=1,"0",VLOOKUP(C180,coefficient2!$A$10:$B$13,2,FALSE)) -> 0.0581293 | J180: =IF(D180=1,"0",VLOOKUP(D180,coefficient2!$A$16:$B$19,2,FALSE)) -> 0.0711974 | K180: =IF(E180=1,"0",VLOOKUP(E180,coefficient2!$A$22:$B$25,2,FALSE)) -> 0 | L180: =IF(F180=1,"0",VLOOKUP(F180,coefficient2!$A$28:$B$31,2,FALSE)) -> 0.2327036 | M180: 0.6379697
A181: 12315 | B181: 1 | C181: 2 | D181: 3 | E181: 1 | F181: 5 | G181: 12 | H181: =IF(B181=1,"0",VLOOKUP(B181,coefficient2!$A$4:$B$7,2,FALSE)) -> 0 | I181: =IF(C181=1,"0",VLOOKUP(C181,coefficient2!$A$10:$B$13,2,FALSE)) -> 0.0581293 | J181: =IF(D181=1,"0",VLOOKUP(D181,coefficient2!$A$16:$B$19,2,FALSE)) -> 0.0711974 | K181: =IF(E181=1,"0",VLOOKUP(E181,coefficient2!$A$22:$B$25,2,FALSE)) -> 0 | L181: =IF(F181=1,"0",VLOOKUP(F181,coefficient2!$A$28:$B$31,2,FALSE)) -> 0.2953493 | M181: 0.575324
A182: 12321 | B182: 1 | C182: 2 | D182: 3 | E182: 2 | F182: 1 | G182: 9 | H182: =IF(B182=1,"0",VLOOKUP(B182,coefficient2!$A$4:$B$7,2,FALSE)) -> 0 | I182: =IF(C182=1,"0",VLOOKUP(C182,coefficient2!$A$10:$B$13,2,FALSE)) -> 0.0581293 | J182: =IF(D182=1,"0",VLOOKUP(D182,coefficient2!$A$16:$B$19,2,FALSE)) -> 0.0711974 | K182: =IF(E182=1,"0",VLOOKUP(E182,coefficient2!$A$22:$B$25,2,FALSE)) -> 0.0563998 | L182: =IF(F182=1,"0",VLOOKUP(F182,coefficient2!$A$28:$B$31,2,FALSE)) -> 0 | M182: 0.8142735
A183: 12322 | B183: 1 | C183: 2 | D183: 3 | E183: 2 | F183: 2 | G183: 10 | H183: =IF(B183=1,"0",VLOOKUP(B183,coefficient2!$A$4:$B$7,2,FALSE)) -> 0 | I183: =IF(C183=1,"0",VLOOKUP(C183,coefficient2!$A$10:$B$13,2,FALSE)) -> 0.0581293 | J183: =IF(D183=1,"0",VLOOKUP(D183,coefficient2!$A$16:$B$19,2,FALSE)) -> 0.0711974 | K183: =IF(E183=1,"0",VLOOKUP(E183,coefficient2!$A$22:$B$25,2,FALSE)) -> 0.0563998 | L183: =IF(F183=1,"0",VLOOKUP(F183,coefficient2!$A$28:$B$31,2,FALSE)) -> 0.0580857 | M183: 0.7561878
A184: 12323 | B184: 1 | C184: 2 | D184: 3 | E184: 2 | F184: 3 | G184: 11 | H184: =IF(B184=1,"0",VLOOKUP(B184,coefficient2!$A$4:$B$7,2,FALSE)) -> 0 | I184: =IF(C184=1,"0",VLOOKUP(C184,coefficient2!$A$10:$B$13,2,FALSE)) -> 0.0581293 | J184: =IF(D184=1,"0",VLOOKUP(D184,coefficient2!$A$16:$B$19,2,FALSE)) -> 0.0711974 | K184: =IF(E184=1,"0",VLOOKUP(E184,coefficient2!$A$22:$B$25,2,FALSE)) -> 0.0563998 | L184: =IF(F184=1,"0",VLOOKUP(F184,coefficient2!$A$28:$B$31,2,FALSE)) -> 0.0957539 | M184: 0.7185196
A185: 12324 | B185: 1 | C185: 2 | D185: 3 | E185: 2 | F185: 4 | G185: 12 | H185: =IF(B185=1,"0",VLOOKUP(B185,coefficient2!$A$4:$B$7,2,FALSE)) -> 0 | I185: =IF(C185=1,"0",VLOOKUP(C185,coefficient2!$A$10:$B$13,2,FALSE)) -> 0.0581293 | J185: =IF(D185=1,"0",VLOOKUP(D185,coefficient2!$A$16:$B$19,2,FALSE)) -> 0.0711974 | K185: =IF(E185=1,"0",VLOOKUP(E185,coefficient2!$A$22:$B$25,2,FALSE)) -> 0.0563998 | L185: =IF(F185=1,"0",VLOOKUP(F185,coefficient2!$A$28:$B$31,2,FALSE)) -> 0.2327036 | M185: 0.5815699
A186: 12325 | B186: 1 | C186: 2 | D186: 3 | E186: 2 | F186: 5 | G186: 13 | H186: =IF(B186=1,"0",VLOOKUP(B186,coefficient2!$A$4:$B$7,2,FALSE)) -> 0 | I186: =IF(C186=1,"0",VLOOKUP(C186,coefficient2!$A$10:$B$13,2,FALSE)) -> 0.0581293 | J186: =IF(D186=1,"0",VLOOKUP(D186,coefficient2!$A$16:$B$19,2,FALSE)) -> 0.0711974 | K186: =IF(E186=1,"0",VLOOKUP(E186,coefficient2!$A$22:$B$25,2,FALSE)) -> 0.0563998 | L186: =IF(F186=1,"0",VLOOKUP(F186,coefficient2!$A$28:$B$31,2,FALSE)) -> 0.2953493 | M186: 0.5189242
A187: 12331 | B187: 1 | C187: 2 | D187: 3 | E187: 3 | F187: 1 | G187: 10 | H187: =IF(B187=1,"0",VLOOKUP(B187,coefficient2!$A$4:$B$7,2,FALSE)) -> 0 | I187: =IF(C187=1,"0",VLOOKUP(C187,coefficient2!$A$10:$B$13,2,FALSE)) -> 0.0581293 | J187: =IF(D187=1,"0",VLOOKUP(D187,coefficient2!$A$16:$B$19,2,FALSE)) -> 0.0711974 | K187: =IF(E187=1,"0",VLOOKUP(E187,coefficient2!$A$22:$B$25,2,FALSE)) -> 0.0664922 | L187: =IF(F187=1,"0",VLOOKUP(F187,coefficient2!$A$28:$B$31,2,FALSE)) -> 0 | M187: 0.8041811
A188: 12332 | B188: 1 | C188: 2 | D188: 3 | E188: 3 | F188: 2 | G188: 11 | H188: =IF(B188=1,"0",VLOOKUP(B188,coefficient2!$A$4:$B$7,2,FALSE)) -> 0 | I188: =IF(C188=1,"0",VLOOKUP(C188,coefficient2!$A$10:$B$13,2,FALSE)) -> 0.0581293 | J188: =IF(D188=1,"0",VLOOKUP(D188,coefficient2!$A$16:$B$19,2,FALSE)) -> 0.0711974 | K188: =IF(E188=1,"0",VLOOKUP(E188,coefficient2!$A$22:$B$25,2,FALSE)) -> 0.0664922 | L188: =IF(F188=1,"0",VLOOKUP(F188,coefficient2!$A$28:$B$31,2,FALSE)) -> 0.0580857 | M188: 0.7460954
A189: 12333 | B189: 1 | C189: 2 | D189: 3 | E189: 3 | F189: 3 | G189: 12 | H189: =IF(B189=1,"0",VLOOKUP(B189,coefficient2!$A$4:$B$7,2,FALSE)) -> 0 | I189: =IF(C189=1,"0",VLOOKUP(C189,coefficient2!$A$10:$B$13,2,FALSE)) -> 0.0581293 | J189: =IF(D189=1,"0",VLOOKUP(D189,coefficient2!$A$16:$B$19,2,FALSE)) -> 0.0711974 | K189: =IF(E189=1,"0",VLOOKUP(E189,coefficient2!$A$22:$B$25,2,FALSE)) -> 0.0664922 | L189: =IF(F189=1,"0",VLOOKUP(F189,coefficient2!$A$28:$B$31,2,FALSE)) -> 0.0957539 | M189: 0.7084272
A190: 12334 | B190: 1 | C190: 2 | D190: 3 | E190: 3 | F190: 4 | G190: 13 | H190: =IF(B190=1,"0",VLOOKUP(B190,coefficient2!$A$4:$B$7,2,FALSE)) -> 0 | I190: =IF(C190=1,"0",VLOOKUP(C190,coefficient2!$A$10:$B$13,2,FALSE)) -> 0.0581293 | J190: =IF(D190=1,"0",VLOOKUP(D190,coefficient2!$A$16:$B$19,2,FALSE)) -> 0.0711974 | K190: =IF(E190=1,"0",VLOOKUP(E190,coefficient2!$A$22:$B$25,2,FALSE)) -> 0.0664922 | L190: =IF(F190=1,"0",VLOOKUP(F190,coefficient2!$A$28:$B$31,2,FALSE)) -> 0.2327036 | M190: 0.5714775
A191: 12335 | B191: 1 | C191: 2 | D191: 3 | E191: 3 | F191: 5 | G191: 14 | H191: =IF(B191=1,"0",VLOOKUP(B191,coefficient2!$A$4:$B$7,2,FALSE)) -> 0 | I191: =IF(C191=1,"0",VLOOKUP(C191,coefficient2!$A$10:$B$13,2,FALSE)) -> 0.0581293 | J191: =IF(D191=1,"0",VLOOKUP(D191,coefficient2!$A$16:$B$19,2,FALSE)) -> 0.0711974 | K191: =IF(E191=1,"0",VLOOKUP(E191,coefficient2!$A$22:$B$25,2,FALSE)) -> 0.0664922 | L191: =IF(F191=1,"0",VLOOKUP(F191,coefficient2!$A$28:$B$31,2,FALSE)) -> 0.2953493 | M191: 0.5088318
A192: 12341 | B192: 1 | C192: 2 | D192: 3 | E192: 4 | F192: 1 | G192: 11 | H192: =IF(B192=1,"0",VLOOKUP(B192,coefficient2!$A$4:$B$7,2,FALSE)) -> 0 | I192: =IF(C192=1,"0",VLOOKUP(C192,coefficient2!$A$10:$B$13,2,FALSE)) -> 0.0581293 | J192: =IF(D192=1,"0",VLOOKUP(D192,coefficient2!$A$16:$B$19,2,FALSE)) -> 0.0711974 | K192: =IF(E192=1,"0",VLOOKUP(E192,coefficient2!$A$22:$B$25,2,FALSE)) -> 0.2068864 | L192: =IF(F192=1,"0",VLOOKUP(F192,coefficient2!$A$28:$B$31,2,FALSE)) -> 0 | M192: 0.6637869
A193: 12342 | B193: 1 | C193: 2 | D193: 3 | E193: 4 | F193: 2 | G193: 12 | H193: =IF(B193=1,"0",VLOOKUP(B193,coefficient2!$A$4:$B$7,2,FALSE)) -> 0 | I193: =IF(C193=1,"0",VLOOKUP(C193,coefficient2!$A$10:$B$13,2,FALSE)) -> 0.0581293 | J193: =IF(D193=1,"0",VLOOKUP(D193,coefficient2!$A$16:$B$19,2,FALSE)) -> 0.0711974 | K193: =IF(E193=1,"0",VLOOKUP(E193,coefficient2!$A$22:$B$25,2,FALSE)) -> 0.2068864 | L193: =IF(F193=1,"0",VLOOKUP(F193,coefficient2!$A$28:$B$31,2,FALSE)) -> 0.0580857 | M193: 0.6057012
A194: 12343 | B194: 1 | C194: 2 | D194: 3 | E194: 4 | F194: 3 | G194: 13 | H194: =IF(B194=1,"0",VLOOKUP(B194,coefficient2!$A$4:$B$7,2,FALSE)) -> 0 | I194: =IF(C194=1,"0",VLOOKUP(C194,coefficient2!$A$10:$B$13,2,FALSE)) -> 0.0581293 | J194: =IF(D194=1,"0",VLOOKUP(D194,coefficient2!$A$16:$B$19,2,FALSE)) -> 0.0711974 | K194: =IF(E194=1,"0",VLOOKUP(E194,coefficient2!$A$22:$B$25,2,FALSE)) -> 0.2068864 | L194: =IF(F194=1,"0",VLOOKUP(F194,coefficient2!$A$28:$B$31,2,FALSE)) -> 0.0957539 | M194: =1-H194-I194-J194-K194-L194 -> 0.568033
A195: 12344 | B195: =INT(LEFT(A195,1)) -> 1 | C195: =INT(MID(A195,2,1)) -> 2 | D195: =INT(MID(A195,3,1)) -> 3 | E195: =INT(MID(A195,4,1)) -> 4 | F195: =INT(RIGHT(A195,1)) -> 4 | G195: =SUM(B195:F195) -> 14 | H195: =IF(B195=1,"0",VLOOKUP(B195,coefficient2!$A$4:$B$7,2,FALSE)) -> 0 | I195: =IF(C195=1,"0",VLOOKUP(C195,coefficient2!$A$10:$B$13,2,FALSE)) -> 0.0581293 | J195: =IF(D195=1,"0",VLOOKUP(D195,coefficient2!$A$16:$B$19,2,FALSE)) -> 0.0711974 | K195: =IF(E195=1,"0",VLOOKUP(E195,coefficient2!$A$22:$B$25,2,FALSE)) -> 0.2068864 | L195: =IF(F195=1,"0",VLOOKUP(F195,coefficient2!$A$28:$B$31,2,FALSE)) -> 0.2327036 | M195: 0.4310833
A196: 12345 | B196: 1 | C196: 2 | D196: 3 | E196: 4 | F196: 5 | G196: 15 | H196: =IF(B196=1,"0",VLOOKUP(B196,coefficient2!$A$4:$B$7,2,FALSE)) -> 0 | I196: =IF(C196=1,"0",VLOOKUP(C196,coefficient2!$A$10:$B$13,2,FALSE)) -> 0.0581293 | J196: =IF(D196=1,"0",VLOOKUP(D196,coefficient2!$A$16:$B$19,2,FALSE)) -> 0.0711974 | K196: =IF(E196=1,"0",VLOOKUP(E196,coefficient2!$A$22:$B$25,2,FALSE)) -> 0.2068864 | L196: =IF(F196=1,"0",VLOOKUP(F196,coefficient2!$A$28:$B$31,2,FALSE)) -> 0.2953493 | M196: 0.3684376
A197: 12351 | B197: 1 | C197: 2 | D197: 3 | E197: 5 | F197: 1 | G197: 12 | H197: =IF(B197=1,"0",VLOOKUP(B197,coefficient2!$A$4:$B$7,2,FALSE)) -> 0 | I197: =IF(C197=1,"0",VLOOKUP(C197,coefficient2!$A$10:$B$13,2,FALSE)) -> 0.0581293 | J197: =IF(D197=1,"0",VLOOKUP(D197,coefficient2!$A$16:$B$19,2,FALSE)) -> 0.0711974 | K197: =IF(E197=1,"0",VLOOKUP(E197,coefficient2!$A$22:$B$25,2,FALSE)) -> 0.2564331 | L197: =IF(F197=1,"0",VLOOKUP(F197,coefficient2!$A$28:$B$31,2,FALSE)) -> 0 | M197: 0.6142402
A198: 12352 | B198: 1 | C198: 2 | D198: 3 | E198: 5 | F198: 2 | G198: 13 | H198: =IF(B198=1,"0",VLOOKUP(B198,coefficient2!$A$4:$B$7,2,FALSE)) -> 0 | I198: =IF(C198=1,"0",VLOOKUP(C198,coefficient2!$A$10:$B$13,2,FALSE)) -> 0.0581293 | J198: =IF(D198=1,"0",VLOOKUP(D198,coefficient2!$A$16:$B$19,2,FALSE)) -> 0.0711974 | K198: =IF(E198=1,"0",VLOOKUP(E198,coefficient2!$A$22:$B$25,2,FALSE)) -> 0.2564331 | L198: =IF(F198=1,"0",VLOOKUP(F198,coefficient2!$A$28:$B$31,2,FALSE)) -> 0.0580857 | M198: 0.5561545
A199: 12353 | B199: 1 | C199: 2 | D199: 3 | E199: 5 | F199: 3 | G199: 14 | H199: =IF(B199=1,"0",VLOOKUP(B199,coefficient2!$A$4:$B$7,2,FALSE)) -> 0 | I199: =IF(C199=1,"0",VLOOKUP(C199,coefficient2!$A$10:$B$13,2,FALSE)) -> 0.0581293 | J199: =IF(D199=1,"0",VLOOKUP(D199,coefficient2!$A$16:$B$19,2,FALSE)) -> 0.0711974 | K199: =IF(E199=1,"0",VLOOKUP(E199,coefficient2!$A$22:$B$25,2,FALSE)) -> 0.2564331 | L199: =IF(F199=1,"0",VLOOKUP(F199,coefficient2!$A$28:$B$31,2,FALSE)) -> 0.0957539 | M199: 0.5184863
A200: 12354 | B200: 1 | C200: 2 | D200: 3 | E200: 5 | F200: 4 | G200: 15 | H200: =IF(B200=1,"0",VLOOKUP(B200,coefficient2!$A$4:$B$7,2,FALSE)) -> 0 | I200: =IF(C200=1,"0",VLOOKUP(C200,coefficient2!$A$10:$B$13,2,FALSE)) -> 0.0581293 | J200: =IF(D200=1,"0",VLOOKUP(D200,coefficient2!$A$16:$B$19,2,FALSE)) -> 0.0711974 | K200: =IF(E200=1,"0",VLOOKUP(E200,coefficient2!$A$22:$B$25,2,FALSE)) -> 0.2564331 | L200: =IF(F200=1,"0",VLOOKUP(F200,coefficient2!$A$28:$B$31,2,FALSE)) -> 0.2327036 | M200: 0.3815366
... 2926 more rows

Sheet coefficient2 (hidden)
A1: Health dimension | B1: Coefficient | C1: Std.Err. | D1: 95% confidence interval
A2: / level | D2: lower | E2: upper
A3: Mobility (MO)
A4: 2 | B4: 0.066127 | C4: 0.0049381 | D4: 0.0564485 | E4: 0.0758055
A5: 3 | B5: 0.0865629 | C5: 0.0072177 | D5: 0.0724165 | E5: 0.1007093
A6: 4 | B6: 0.2109943 | C6: 0.0070863 | D6: 0.1971054 | E6: 0.2248833
A7: 5 | B7: 0.3712311 | C7: 0.0071952 | D7: 0.3571286 | E7: 0.3853335
A9: Self-care (SC)
A10: 2 | B10: 0.0581293 | C10: 0.0046566 | D10: 0.0490026 | E10: 0.067256
A11: 3 | B11: 0.0706312 | C11: 0.0067241 | D11: 0.0574522 | E11: 0.0838102
A12: 4 | B12: 0.1924905 | C12: 0.0071362 | D12: 0.1785039 | E12: 0.2064771
A13: 5 | B13: 0.2498763 | C13: 0.00661 | D13: 0.2369209 | E13: 0.2628317
A15: Usual activities (UA)
A16: 2 | B16: 0.0582544 | C16: 0.0047397 | D16: 0.0489648 | E16: 0.0675441
A17: 3 | B17: 0.0711974 | C17: 0.0065282 | D17: 0.0584024 | E17: 0.0839923
A18: 4 | B18: 0.1534855 | C18: 0.0067402 | D18: 0.140275 | E18: 0.166696
A19: 5 | B19: 0.248331 | C19: 0.0067093 | D19: 0.235181 | E19: 0.261481
A21: Pain/discomfort (PD)
A22: 2 | B22: 0.0563998 | C22: 0.0042876 | D22: 0.0479963 | E22: 0.0648034
A23: 3 | B23: 0.0664922 | C23: 0.0071412 | D23: 0.0524957 | E23: 0.0804887
A24: 4 | B24: 0.2068864 | C24: 0.007112 | D24: 0.1929471 | E24: 0.2208256
A25: 5 | B25: 0.2564331 | C25: 0.0072508 | D25: 0.2422218 | E25: 0.2706445
A27: Anxiety/depression (AD)
A28: 2 | B28: 0.0580857 | C28: 0.0043138 | D28: 0.0496309 | E28: 0.0665406
A29: 3 | B29: 0.0957539 | C29: 0.0068403 | D29: 0.0823471 | E29: 0.1091607
A30: 4 | B30: 0.2327036 | C30: 0.0066124 | D30: 0.2197436 | E30: 0.2456636
A31: 5 | B31: 0.2953493 | C31: 0.0066338 | D31: 0.2823473 | E31: 0.3083512
